Workbook

Sheet 대덕구인구현황
A1: 대전광역시 대덕구 주민등록 인구현황
AA2: [ 2023. 9. 30.기준 ]
A3: 동 별 | B3: 인 구 및 세 대 수 | I3: 10대 이하 (0세 ~ 19세) | L3: 20대 | O3: 30대 | R3: 40대 | U3: 50대 | X3: 60대 | AA3: 70대 이상 | AD3: 65세 이상
B4: 계 | C4: 전월계 | D4: 증감 | E4: 증감비 (%) | F4: 남 | G4: 여 | H4: 세대수 | I4: 계 | J4: 전월계 | K4: 증감 | L4: 계 | M4: 전월계 | N4: 증감 | O4: 계 | P4: 전월계 | Q4: 증감 | R4: 계 | S4: 전월계 | T4: 증감 | U4: 계 | V4: 전월계 | W4: 증감 | X4: 계 | Y4: 전월계 | Z4: 증감 | AA4: 계 | AB4: 전월계 | AC4: 증감 | AD4: 계 | AE4: 전월계 | AF4: 증감
A5: 계 | B5: =SUM(B6:B17) -> 170480 | C5: =SUM(C6:C17) -> 170609 | D5: =SUM(D6:D17) -> -129 | E5: =(D5/B5)*100 -> -0.07566870014 | F5: =SUM(F6:F17) -> 86676 | G5: =SUM(G6:G17) -> 83804 | H5: =SUM(H6:H17) -> 80366 | I5: =SUM(I6:I17) -> 23799 | J5: =SUM(J6:J17) -> 23909 | K5: =SUM(K6:K17) -> -110 | L5: =SUM(L6:L17) -> 21714 | M5: =SUM(M6:M17) -> 21769 | N5: =SUM(N6:N17) -> -55 | O5: 19443 | P5: 19443 | Q5: 0 | R5: 24034 | S5: 24126 | T5: -92 | U5: =SUM(U6:U17) -> 32776 | V5: 32771 | W5: 5 | X5: 28240 | Y5: 28197 | Z5: 43 | AA5: 20474 | AB5: 20394 | AC5: 80 | AD5: =SUM(AD6:AD17) -> 32521 | AE5: =SUM(AE6:AE17) -> 32390 | AF5: =SUM(AF6:AF17) -> 131
A6: 오 정 동 | B6: 13952 | C6: 13949 | D6: =B6-C6 -> 3 | E6: 0.02150229358 | F6: 7324 | G6: 6628 | H6: 7562 | I6: 1402 | J6: 1409 | K6: =I6-J6 -> -7 | L6: 2168 | M6: 2168 | N6: =L6-M6 -> 0 | O6: 1403 | P6: 1387 | Q6: =O6-P6 -> 16 | R6: 1668 | S6: 1678 | T6: =R6-S6 -> -10 | U6: 2465 | V6: 2477 | W6: =U6-V6 -> -12 | X6: 2722 | Y6: 2718 | Z6: =X6-Y6 -> 4 | AA6: 2124 | AB6: 2112 | AC6: =AA6-AB6 -> 12 | AD6: 3344 | AE6: 3333 | AF6: =AD6-AE6 -> 11
A7: 대 화 동 | B7: 6524 | C7: 6538 | D7: -14 | E7: -0.2145922747 | F7: 3422 | G7: 3102 | H7: 3390 | I7: 626 | J7: 626 | K7: 0 | L7: 647 | M7: 659 | N7: -12 | O7: 713 | P7: 720 | Q7: =O7-P7 -> -7 | R7: 928 | S7: 930 | T7: =R7-S7 -> -2 | U7: 1240 | V7: 1232 | W7: =U7-V7 -> 8 | X7: 1290 | Y7: 1296 | Z7: =X7-Y7 -> -6 | AA7: 1080 | AB7: 1075 | AC7: 5 | AD7: 1674 | AE7: 1662 | AF7: 12
A8: 회 덕 동 | B8: 11512 | C8: 11540 | D8: -28 | E8: -0.2432244614 | F8: 5895 | G8: 5617 | H8: 5469 | I8: 1309 | J8: 1316 | K8: -7 | L8: 1148 | M8: 1169 | N8: -21 | O8: 1116 | P8: 1116 | Q8: 0 | R8: 1427 | S8: 1435 | T8: -8 | U8: 2176 | V8: 2180 | W8: -4 | X8: 2387 | Y8: 2382 | Z8: 5 | AA8: 1949 | AB8: 1942 | AC8: 7 | AD8: 3034 | AE8: 3020 | AF8: 14
A9: 비 래 동 | B9: 15488 | C9: 15505 | D9: -17 | E9: -0.1097623967 | F9: 7692 | G9: 7796 | H9: 6947 | I9: 2112 | J9: 2121 | K9: -9 | L9: 1925 | M9: 1917 | N9: 8 | O9: 1446 | P9: 1447 | Q9: -1 | R9: 2128 | S9: 2140 | T9: -12 | U9: 3088 | V9: 3088 | W9: 0 | X9: 2777 | Y9: 2784 | Z9: -7 | AA9: 2012 | AB9: 2008 | AC9: 4 | AD9: 3234 | AE9: 3226 | AF9: 8
A10: 송 촌 동 | B10: 26318 | C10: 26300 | D10: 18 | E10: 0.06839425488 | F10: 13046 | G10: 13272 | H10: 10440 | I10: 4908 | J10: 4924 | K10: -16 | L10: 3667 | M10: 3661 | N10: 6 | O10: 2490 | P10: 2481 | Q10: 9 | R10: 4191 | S10: 4200 | T10: -9 | U10: 5711 | V10: 5707 | W10: 4 | X10: 3349 | Y10: 3328 | Z10: 21 | AA10: 2002 | AB10: 1999 | AC10: 3 | AD10: 3227 | AE10: 3219 | AF10: 8
A11: 중 리 동 | B11: 18819 | C11: 18845 | D11: -26 | E11: -0.1381582443 | F11: 9795 | G11: 9024 | H11: 10444 | I11: 2052 | J11: 2065 | K11: -13 | L11: 2736 | M11: 2741 | N11: -5 | O11: 2121 | P11: 2120 | Q11: 1 | R11: 2654 | S11: 2663 | T11: -9 | U11: 3662 | V11: 3677 | W11: -15 | X11: 3340 | Y11: 3333 | Z11: 7 | AA11: 2254 | AB11: 2246 | AC11: 8 | AD11: 3741 | AE11: 3725 | AF11: 16
A12: 법 1 동 | B12: 12556 | C12: 12564 | D12: -8 | E12: -0.06371455878 | F12: 5884 | G12: 6672 | H12: 5885 | I12: 1742 | J12: 1738 | K12: 4 | L12: 1378 | M12: 1392 | N12: -14 | O12: 1542 | P12: 1548 | Q12: -6 | R12: 1567 | S12: 1580 | T12: -13 | U12: 2368 | V12: 2355 | W12: 13 | X12: 2202 | Y12: 2196 | Z12: 6 | AA12: 1757 | AB12: 1755 | AC12: 2 | AD12: 2719 | AE12: 2714 | AF12: 5
A13: 법 2 동 | B13: 15164 | C13: 15199 | D13: -35 | E13: -0.2308098127 | F13: 7380 | G13: 7784 | H13: 6762 | I13: 2021 | J13: 2043 | K13: -22 | L13: 1793 | M13: 1800 | N13: -7 | O13: 1358 | P13: 1368 | Q13: -10 | R13: 1938 | S13: 1946 | T13: -8 | U13: 3046 | V13: 3050 | W13: -4 | X13: 2941 | Y13: 2934 | Z13: 7 | AA13: 2067 | AB13: 2058 | AC13: 9 | AD13: 3295 | AE13: 3284 | AF13: 11
A14: 신 탄 진 | B14: 14587 | C14: 14566 | D14: 21 | E14: 0.1439638034 | F14: 7530 | G14: 7057 | H14: 7003 | I14: 1897 | J14: 1901 | K14: -4 | L14: 1723 | M14: 1722 | N14: 1 | O14: 2055 | P14: 2054 | Q14: 1 | R14: 1963 | S14: 1957 | T14: 6 | U14: 2708 | V14: 2707 | W14: 1 | X14: 2392 | Y14: 2376 | Z14: 16 | AA14: 1849 | AB14: 1849 | AC14: 0 | AD14: 2903 | AE14: 2895 | AF14: 8
A15: 석 봉 동 | B15: 16257 | C15: 16266 | D15: -9 | E15: -0.05536076767 | F15: 8308 | G15: 7949 | H15: 6651 | I15: 3356 | J15: 3372 | K15: -16 | L15: 1735 | M15: 1739 | N15: -4 | O15: 2616 | P15: 2609 | Q15: 7 | R15: 2767 | S15: 2780 | T15: -13 | U15: 2612 | V15: 2596 | W15: 16 | X15: 1999 | Y15: 2005 | Z15: -6 | AA15: 1172 | AB15: 1165 | AC15: 7 | AD15: 1958 | AE15: 1944 | AF15: 14
A16: 덕 암 동 | B16: 13127 | C16: 13130 | D16: -3 | E16: -0.02285366039 | F16: 7046 | G16: 6081 | H16: 6652 | I16: 1529 | J16: 1540 | K16: -11 | L16: 1908 | M16: 1906 | N16: 2 | O16: 1647 | P16: 1650 | Q16: -3 | R16: 1780 | S16: 1784 | T16: -4 | U16: 2563 | V16: 2567 | W16: -4 | X16: 2013 | Y16: 2016 | Z16: -3 | AA16: 1687 | AB16: 1667 | AC16: 20 | AD16: 2550 | AE16: 2532 | AF16: 18
A17: 목 상 동 | B17: 6176 | C17: 6207 | D17: -31 | E17: -0.5019430052 | F17: 3354 | G17: 2822 | H17: 3161 | I17: 845 | J17: 854 | K17: -9 | L17: 886 | M17: 895 | N17: -9 | O17: 936 | P17: 943 | Q17: -7 | R17: 1023 | S17: 1033 | T17: -10 | U17: 1137 | V17: 1135 | W17: 2 | X17: 828 | Y17: 829 | Z17: -1 | AA17: 521 | AB17: 518 | AC17: 3 | AD17: 842 | AE17: 836 | AF17: 6

Sheet 기관별연령별인구통계(2023.9.)
B2: 연령별(만)인구현황(기관별)
B4: 행정기관 : 대전광역시 대덕구 | M4: 출력일자 : | N4: 2023.10.01
B5: 통계년월 : 2023년 09월 현재
B6: 연령 | D6: 대덕구 | G6: 오정동 | J6: 대화동 | M6: 회덕동 | P6: 비래동 | S6: 송촌동 | V6: 중리동 | Y6: 법1동 | AB6: 법2동 | AE6: 신탄진동 | AH6: 석봉동 | AK6: 덕암동 | AN6: 목상동
D7: 인구수 | E7: 구성비 | F7: 성비 | G7: 인구수 | H7: 구성비 | I7: 성비 | J7: 인구수 | K7: 구성비 | L7: 성비 | M7: 인구수 | N7: 구성비 | O7: 성비 | P7: 인구수 | Q7: 구성비 | R7: 성비 | S7: 인구수 | T7: 구성비 | U7: 성비 | V7: 인구수 | W7: 구성비 | X7: 성비 | Y7: 인구수 | Z7: 구성비 | AA7: 성비 | AB7: 인구수 | AC7: 구성비 | AD7: 성비 | AE7: 인구수 | AF7: 구성비 | AG7: 성비 | AH7: 인구수 | AI7: 구성비 | AJ7: 성비 | AK7: 인구수 | AL7: 구성비 | AM7: 성비 | AN7: 인구수 | AO7: 구성비 | AP7: 성비
B8: 합 계 | C8: 계 | D8: 170,480 | E8: 100.00 | F8: 103.43 | G8: 13,952 | H8: 100.00 | I8: 110.50 | J8: 6,524 | K8: 100.00 | L8: 110.32 | M8: 11,512 | N8: 100.00 | O8: 104.95 | P8: 15,488 | Q8: 100.00 | R8: 98.67 | S8: 26,318 | T8: 100.00 | U8: 98.30 | V8: 18,819 | W8: 100.00 | X8: 108.54 | Y8: 12,556 | Z8: 100.00 | AA8: 88.19 | AB8: 15,164 | AC8: 100.00 | AD8: 94.81 | AE8: 14,587 | AF8: 100.00 | AG8: 106.70 | AH8: 16,257 | AI8: 100.00 | AJ8: 104.52 | AK8: 13,127 | AL8: 100.00 | AM8: 115.87 | AN8: 6,176 | AO8: 100.00 | AP8: 118.85
C9: 남 | D9: 86,676 | E9: 100.00 | G9: 7,324 | H9: 100.00 | J9: 3,422 | K9: 100.00 | M9: 5,895 | N9: 100.00 | P9: 7,692 | Q9: 100.00 | S9: 13,046 | T9: 100.00 | V9: 9,795 | W9: 100.00 | Y9: 5,884 | Z9: 100.00 | AB9: 7,380 | AC9: 100.00 | AE9: 7,530 | AF9: 100.00 | AH9: 8,308 | AI9: 100.00 | AK9: 7,046 | AL9: 100.00 | AN9: 3,354 | AO9: 100.00
C10: 여 | D10: 83,804 | E10: 100.00 | G10: 6,628 | H10: 100.00 | J10: 3,102 | K10: 100.00 | M10: 5,617 | N10: 100.00 | P10: 7,796 | Q10: 100.00 | S10: 13,272 | T10: 100.00 | V10: 9,024 | W10: 100.00 | Y10: 6,672 | Z10: 100.00 | AB10: 7,784 | AC10: 100.00 | AE10: 7,057 | AF10: 100.00 | AH10: 7,949 | AI10: 100.00 | AK10: 6,081 | AL10: 100.00 | AN10: 2,822 | AO10: 100.00
B11: 0세 | C11: 계 | D11: 747 | E11: 0.44 | F11: 135.65 | G11: 38 | H11: 0.27 | I11: 192.31 | J11: 17 | K11: 0.26 | L11: 240.00 | M11: 31 | N11: 0.27 | O11: 158.33 | P11: 49 | Q11: 0.32 | R11: 157.89 | S11: 84 | T11: 0.32 | U11: 147.06 | V11: 43 | W11: 0.23 | X11: 138.89 | Y11: 84 | Z11: 0.67 | AA11: 140.00 | AB11: 68 | AC11: 0.45 | AD11: 142.86 | AE11: 116 | AF11: 0.80 | AG11: 118.87 | AH11: 129 | AI11: 0.79 | AJ11: 115.00 | AK11: 57 | AL11: 0.43 | AM11: 137.50 | AN11: 31 | AO11: 0.50 | AP11: 93.75
C12: 남 | D12: 430 | E12: 0.50 | G12: 25 | H12: 0.34 | J12: 12 | K12: 0.35 | M12: 19 | N12: 0.32 | P12: 30 | Q12: 0.39 | S12: 50 | T12: 0.38 | V12: 25 | W12: 0.26 | Y12: 49 | Z12: 0.83 | AB12: 40 | AC12: 0.54 | AE12: 63 | AF12: 0.84 | AH12: 69 | AI12: 0.83 | AK12: 33 | AL12: 0.47 | AN12: 15 | AO12: 0.45
C13: 여 | D13: 317 | E13: 0.38 | G13: 13 | H13: 0.20 | J13: 5 | K13: 0.16 | M13: 12 | N13: 0.21 | P13: 19 | Q13: 0.24 | S13: 34 | T13: 0.26 | V13: 18 | W13: 0.20 | Y13: 35 | Z13: 0.52 | AB13: 28 | AC13: 0.36 | AE13: 53 | AF13: 0.75 | AH13: 60 | AI13: 0.75 | AK13: 24 | AL13: 0.39 | AN13: 16 | AO13: 0.57
B14: 1세 | C14: 계 | D14: 793 | E14: 0.47 | F14: 102.30 | G14: 44 | H14: 0.32 | I14: 144.44 | J14: 21 | K14: 0.32 | L14: 110.00 | M14: 44 | N14: 0.38 | O14: 100.00 | P14: 55 | Q14: 0.36 | R14: 111.54 | S14: 116 | T14: 0.44 | U14: 103.51 | V14: 59 | W14: 0.31 | X14: 118.52 | Y14: 85 | Z14: 0.68 | AA14: 123.68 | AB14: 42 | AC14: 0.28 | AD14: 162.50 | AE14: 96 | AF14: 0.66 | AG14: 95.92 | AH14: 159 | AI14: 0.98 | AJ14: 70.97 | AK14: 43 | AL14: 0.33 | AM14: 126.32 | AN14: 29 | AO14: 0.47 | AP14: 70.59
C15: 남 | D15: 401 | E15: 0.46 | G15: 26 | H15: 0.35 | J15: 11 | K15: 0.32 | M15: 22 | N15: 0.37 | P15: 29 | Q15: 0.38 | S15: 59 | T15: 0.45 | V15: 32 | W15: 0.33 | Y15: 47 | Z15: 0.80 | AB15: 26 | AC15: 0.35 | AE15: 47 | AF15: 0.62 | AH15: 66 | AI15: 0.79 | AK15: 24 | AL15: 0.34 | AN15: 12 | AO15: 0.36
C16: 여 | D16: 392 | E16: 0.47 | G16: 18 | H16: 0.27 | J16: 10 | K16: 0.32 | M16: 22 | N16: 0.39 | P16: 26 | Q16: 0.33 | S16: 57 | T16: 0.43 | V16: 27 | W16: 0.30 | Y16: 38 | Z16: 0.57 | AB16: 16 | AC16: 0.21 | AE16: 49 | AF16: 0.69 | AH16: 93 | AI16: 1.17 | AK16: 19 | AL16: 0.31 | AN16: 17 | AO16: 0.60
B17: 2세 | C17: 계 | D17: 777 | E17: 0.46 | F17: 110.00 | G17: 46 | H17: 0.33 | I17: 84.00 | J17: 15 | K17: 0.23 | L17: 114.29 | M17: 38 | N17: 0.33 | O17: 80.95 | P17: 53 | Q17: 0.34 | R17: 103.85 | S17: 122 | T17: 0.46 | U17: 79.41 | V17: 65 | W17: 0.35 | X17: 150.00 | Y17: 89 | Z17: 0.71 | AA17: 111.90 | AB17: 51 | AC17: 0.34 | AD17: 218.75 | AE17: 80 | AF17: 0.55 | AG17: 90.48 | AH17: 135 | AI17: 0.83 | AJ17: 141.07 | AK17: 58 | AL17: 0.44 | AM17: 87.10 | AN17: 25 | AO17: 0.40 | AP17: 150.00
C18: 남 | D18: 407 | E18: 0.47 | G18: 21 | H18: 0.29 | J18: 8 | K18: 0.23 | M18: 17 | N18: 0.29 | P18: 27 | Q18: 0.35 | S18: 54 | T18: 0.41 | V18: 39 | W18: 0.40 | Y18: 47 | Z18: 0.80 | AB18: 35 | AC18: 0.47 | AE18: 38 | AF18: 0.50 | AH18: 79 | AI18: 0.95 | AK18: 27 | AL18: 0.38 | AN18: 15 | AO18: 0.45
C19: 여 | D19: 370 | E19: 0.44 | G19: 25 | H19: 0.38 | J19: 7 | K19: 0.23 | M19: 21 | N19: 0.37 | P19: 26 | Q19: 0.33 | S19: 68 | T19: 0.51 | V19: 26 | W19: 0.29 | Y19: 42 | Z19: 0.63 | AB19: 16 | AC19: 0.21 | AE19: 42 | AF19: 0.60 | AH19: 56 | AI19: 0.70 | AK19: 31 | AL19: 0.51 | AN19: 10 | AO19: 0.35
B20: 3세 | C20: 계 | D20: 744 | E20: 0.44 | F20: 107.24 | G20: 35 | H20: 0.25 | I20: 133.33 | J20: 14 | K20: 0.21 | L20: 55.56 | M20: 36 | N20: 0.31 | O20: 89.47 | P20: 49 | Q20: 0.32 | R20: 104.17 | S20: 119 | T20: 0.45 | U20: 133.33 | V20: 56 | W20: 0.30 | X20: 86.67 | Y20: 66 | Z20: 0.53 | AA20: 69.23 | AB20: 50 | AC20: 0.33 | AD20: 177.78 | AE20: 75 | AF20: 0.51 | AG20: 97.37 | AH20: 151 | AI20: 0.93 | AJ20: 104.05 | AK20: 63 | AL20: 0.48 | AM20: 133.33 | AN20: 30 | AO20: 0.49 | AP20: 100.00
C21: 남 | D21: 385 | E21: 0.44 | G21: 20 | H21: 0.27 | J21: 5 | K21: 0.15 | M21: 17 | N21: 0.29 | P21: 25 | Q21: 0.33 | S21: 68 | T21: 0.52 | V21: 26 | W21: 0.27 | Y21: 27 | Z21: 0.46 | AB21: 32 | AC21: 0.43 | AE21: 37 | AF21: 0.49 | AH21: 77 | AI21: 0.93 | AK21: 36 | AL21: 0.51 | AN21: 15 | AO21: 0.45
C22: 여 | D22: 359 | E22: 0.43 | G22: 15 | H22: 0.23 | J22: 9 | K22: 0.29 | M22: 19 | N22: 0.34 | P22: 24 | Q22: 0.31 | S22: 51 | T22: 0.38 | V22: 30 | W22: 0.33 | Y22: 39 | Z22: 0.58 | AB22: 18 | AC22: 0.23 | AE22: 38 | AF22: 0.54 | AH22: 74 | AI22: 0.93 | AK22: 27 | AL22: 0.44 | AN22: 15 | AO22: 0.53
B23: 4세 | C23: 계 | D23: 844 | E23: 0.50 | F23: 96.74 | G23: 49 | H23: 0.35 | I23: 75.00 | J23: 19 | K23: 0.29 | L23: 58.33 | M23: 48 | N23: 0.42 | O23: 100.00 | P23: 64 | Q23: 0.41 | R23: 120.69 | S23: 138 | T23: 0.52 | U23: 74.68 | V23: 67 | W23: 0.36 | X23: 116.13 | Y23: 83 | Z23: 0.66 | AA23: 97.62 | AB23: 81 | AC23: 0.53 | AD23: 88.37 | AE23: 68 | AF23: 0.47 | AG23: 88.89 | AH23: 139 | AI23: 0.86 | AJ23: 127.87 | AK23: 54 | AL23: 0.41 | AM23: 100.00 | AN23: 34 | AO23: 0.55 | AP23: 100.00
C24: 남 | D24: 415 | E24: 0.48 | G24: 21 | H24: 0.29 | J24: 7 | K24: 0.20 | M24: 24 | N24: 0.41 | P24: 35 | Q24: 0.46 | S24: 59 | T24: 0.45 | V24: 36 | W24: 0.37 | Y24: 41 | Z24: 0.70 | AB24: 38 | AC24: 0.51 | AE24: 32 | AF24: 0.42 | AH24: 78 | AI24: 0.94 | AK24: 27 | AL24: 0.38 | AN24: 17 | AO24: 0.51
C25: 여 | D25: 429 | E25: 0.51 | G25: 28 | H25: 0.42 | J25: 12 | K25: 0.39 | M25: 24 | N25: 0.43 | P25: 29 | Q25: 0.37 | S25: 79 | T25: 0.60 | V25: 31 | W25: 0.34 | Y25: 42 | Z25: 0.63 | AB25: 43 | AC25: 0.55 | AE25: 36 | AF25: 0.51 | AH25: 61 | AI25: 0.77 | AK25: 27 | AL25: 0.44 | AN25: 17 | AO25: 0.60
B26: 5세 | C26: 계 | D26: 837 | E26: 0.49 | F26: 88.51 | G26: 38 | H26: 0.27 | I26: 100.00 | J26: 13 | K26: 0.20 | L26: 160.00 | M26: 47 | N26: 0.41 | O26: 88.00 | P26: 72 | Q26: 0.46 | R26: 166.67 | S26: 150 | T26: 0.57 | U26: 80.72 | V26: 62 | W26: 0.33 | X26: 77.14 | Y26: 58 | Z26: 0.46 | AA26: 100.00 | AB26: 78 | AC26: 0.51 | AD26: 59.18 | AE26: 84 | AF26: 0.58 | AG26: 75.00 | AH26: 165 | AI26: 1.01 | AJ26: 89.66 | AK26: 47 | AL26: 0.36 | AM26: 88.00 | AN26: 23 | AO26: 0.37 | AP26: 91.67
C27: 남 | D27: 393 | E27: 0.45 | G27: 19 | H27: 0.26 | J27: 8 | K27: 0.23 | M27: 22 | N27: 0.37 | P27: 45 | Q27: 0.59 | S27: 67 | T27: 0.51 | V27: 27 | W27: 0.28 | Y27: 29 | Z27: 0.49 | AB27: 29 | AC27: 0.39 | AE27: 36 | AF27: 0.48 | AH27: 78 | AI27: 0.94 | AK27: 22 | AL27: 0.31 | AN27: 11 | AO27: 0.33
C28: 여 | D28: 444 | E28: 0.53 | G28: 19 | H28: 0.29 | J28: 5 | K28: 0.16 | M28: 25 | N28: 0.45 | P28: 27 | Q28: 0.35 | S28: 83 | T28: 0.63 | V28: 35 | W28: 0.39 | Y28: 29 | Z28: 0.43 | AB28: 49 | AC28: 0.63 | AE28: 48 | AF28: 0.68 | AH28: 87 | AI28: 1.09 | AK28: 25 | AL28: 0.41 | AN28: 12 | AO28: 0.43
B29: 6세 | C29: 계 | D29: 1,007 | E29: 0.59 | F29: 107.63 | G29: 54 | H29: 0.39 | I29: 107.69 | J29: 20 | K29: 0.31 | L29: 81.82 | M29: 56 | N29: 0.49 | O29: 80.65 | P29: 90 | Q29: 0.58 | R29: 95.65 | S29: 179 | T29: 0.68 | U29: 108.14 | V29: 79 | W29: 0.42 | X29: 102.56 | Y29: 85 | Z29: 0.68 | AA29: 66.67 | AB29: 82 | AC29: 0.54 | AD29: 141.18 | AE29: 79 | AF29: 0.54 | AG29: 154.84 | AH29: 193 | AI29: 1.19 | AJ29: 124.42 | AK29: 64 | AL29: 0.49 | AM29: 100.00 | AN29: 26 | AO29: 0.42 | AP29: 116.67
C30: 남 | D30: 522 | E30: 0.60 | G30: 28 | H30: 0.38 | J30: 9 | K30: 0.26 | M30: 25 | N30: 0.42 | P30: 44 | Q30: 0.57 | S30: 93 | T30: 0.71 | V30: 40 | W30: 0.41 | Y30: 34 | Z30: 0.58 | AB30: 48 | AC30: 0.65 | AE30: 48 | AF30: 0.64 | AH30: 107 | AI30: 1.29 | AK30: 32 | AL30: 0.45 | AN30: 14 | AO30: 0.42
C31: 여 | D31: 485 | E31: 0.58 | G31: 26 | H31: 0.39 | J31: 11 | K31: 0.35 | M31: 31 | N31: 0.55 | P31: 46 | Q31: 0.59 | S31: 86 | T31: 0.65 | V31: 39 | W31: 0.43 | Y31: 51 | Z31: 0.76 | AB31: 34 | AC31: 0.44 | AE31: 31 | AF31: 0.44 | AH31: 86 | AI31: 1.08 | AK31: 32 | AL31: 0.53 | AN31: 12 | AO31: 0.43
B32: 7세 | C32: 계 | D32: 1,079 | E32: 0.63 | F32: 94.77 | G32: 48 | H32: 0.34 | I32: 71.43 | J32: 25 | K32: 0.38 | L32: 257.14 | M32: 49 | N32: 0.43 | O32: 88.46 | P32: 87 | Q32: 0.56 | R32: 97.73 | S32: 223 | T32: 0.85 | U32: 90.60 | V32: 81 | W32: 0.43 | X32: 72.34 | Y32: 70 | Z32: 0.56 | AA32: 150.00 | AB32: 105 | AC32: 0.69 | AD32: 101.92 | AE32: 87 | AF32: 0.60 | AG32: 74.00 | AH32: 217 | AI32: 1.33 | AJ32: 87.07 | AK32: 47 | AL32: 0.36 | AM32: 135.00 | AN32: 40 | AO32: 0.65 | AP32: 110.53
C33: 남 | D33: 525 | E33: 0.61 | G33: 20 | H33: 0.27 | J33: 18 | K33: 0.53 | M33: 23 | N33: 0.39 | P33: 43 | Q33: 0.56 | S33: 106 | T33: 0.81 | V33: 34 | W33: 0.35 | Y33: 42 | Z33: 0.71 | AB33: 53 | AC33: 0.72 | AE33: 37 | AF33: 0.49 | AH33: 101 | AI33: 1.22 | AK33: 27 | AL33: 0.38 | AN33: 21 | AO33: 0.63
C34: 여 | D34: 554 | E34: 0.66 | G34: 28 | H34: 0.42 | J34: 7 | K34: 0.23 | M34: 26 | N34: 0.46 | P34: 44 | Q34: 0.56 | S34: 117 | T34: 0.88 | V34: 47 | W34: 0.52 | Y34: 28 | Z34: 0.42 | AB34: 52 | AC34: 0.67 | AE34: 50 | AF34: 0.71 | AH34: 116 | AI34: 1.46 | AK34: 20 | AL34: 0.33 | AN34: 19 | AO34: 0.67
B35: 8세 | C35: 계 | D35: 1,162 | E35: 0.68 | F35: 113.21 | G35: 69 | H35: 0.49 | I35: 97.14 | J35: 29 | K35: 0.44 | L35: 107.14 | M35: 56 | N35: 0.49 | O35: 133.33 | P35: 99 | Q35: 0.64 | R35: 98.00 | S35: 210 | T35: 0.80 | U35: 128.26 | V35: 93 | W35: 0.49 | X35: 126.83 | Y35: 83 | Z35: 0.66 | AA35: 76.60 | AB35: 90 | AC35: 0.59 | AD35: 100.00 | AE35: 99 | AF35: 0.68 | AG35: 110.64 | AH35: 219 | AI35: 1.35 | AJ35: 130.53 | AK35: 72 | AL35: 0.55 | AM35: 111.76 | AN35: 43 | AO35: 0.70 | AP35: 104.76
C36: 남 | D36: 617 | E36: 0.71 | G36: 34 | H36: 0.46 | J36: 15 | K36: 0.44 | M36: 32 | N36: 0.54 | P36: 49 | Q36: 0.64 | S36: 118 | T36: 0.90 | V36: 52 | W36: 0.53 | Y36: 36 | Z36: 0.61 | AB36: 45 | AC36: 0.61 | AE36: 52 | AF36: 0.69 | AH36: 124 | AI36: 1.49 | AK36: 38 | AL36: 0.54 | AN36: 22 | AO36: 0.66
C37: 여 | D37: 545 | E37: 0.65 | G37: 35 | H37: 0.53 | J37: 14 | K37: 0.45 | M37: 24 | N37: 0.43 | P37: 50 | Q37: 0.64 | S37: 92 | T37: 0.69 | V37: 41 | W37: 0.45 | Y37: 47 | Z37: 0.70 | AB37: 45 | AC37: 0.58 | AE37: 47 | AF37: 0.67 | AH37: 95 | AI37: 1.20 | AK37: 34 | AL37: 0.56 | AN37: 21 | AO37: 0.74
B38: 9세 | C38: 계 | D38: 1,206 | E38: 0.71 | F38: 107.93 | G38: 49 | H38: 0.35 | I38: 122.73 | J38: 30 | K38: 0.46 | L38: 172.73 | M38: 71 | N38: 0.62 | O38: 108.82 | P38: 94 | Q38: 0.61 | R38: 95.83 | S38: 255 | T38: 0.97 | U38: 96.15 | V38: 92 | W38: 0.49 | X38: 95.74 | Y38: 82 | Z38: 0.65 | AA38: 95.24 | AB38: 104 | AC38: 0.69 | AD38: 112.24 | AE38: 87 | AF38: 0.60 | AG38: 97.73 | AH38: 232 | AI38: 1.43 | AJ38: 105.31 | AK38: 68 | AL38: 0.52 | AM38: 151.85 | AN38: 42 | AO38: 0.68 | AP38: 223.08
C39: 남 | D39: 626 | E39: 0.72 | G39: 27 | H39: 0.37 | J39: 19 | K39: 0.56 | M39: 37 | N39: 0.63 | P39: 46 | Q39: 0.60 | S39: 125 | T39: 0.96 | V39: 45 | W39: 0.46 | Y39: 40 | Z39: 0.68 | AB39: 55 | AC39: 0.75 | AE39: 43 | AF39: 0.57 | AH39: 119 | AI39: 1.43 | AK39: 41 | AL39: 0.58 | AN39: 29 | AO39: 0.86
C40: 여 | D40: 580 | E40: 0.69 | G40: 22 | H40: 0.33 | J40: 11 | K40: 0.35 | M40: 34 | N40: 0.61 | P40: 48 | Q40: 0.62 | S40: 130 | T40: 0.98 | V40: 47 | W40: 0.52 | Y40: 42 | Z40: 0.63 | AB40: 49 | AC40: 0.63 | AE40: 44 | AF40: 0.62 | AH40: 113 | AI40: 1.42 | AK40: 27 | AL40: 0.44 | AN40: 13 | AO40: 0.46
B41: 10세 | C41: 계 | D41: 1,277 | E41: 0.75 | F41: 103.34 | G41: 78 | H41: 0.56 | I41: 100.00 | J41: 34 | K41: 0.52 | L41: 100.00 | M41: 72 | N41: 0.63 | O41: 100.00 | P41: 98 | Q41: 0.63 | R41: 117.78 | S41: 264 | T41: 1.00 | U41: 97.01 | V41: 103 | W41: 0.55 | X41: 139.53 | Y41: 87 | Z41: 0.69 | AA41: 93.33 | AB41: 95 | AC41: 0.63 | AD41: 120.93 | AE41: 109 | AF41: 0.75 | AG41: 101.85 | AH41: 216 | AI41: 1.33 | AJ41: 107.69 | AK41: 68 | AL41: 0.52 | AM41: 78.95 | AN41: 53 | AO41: 0.86 | AP41: 76.67
C42: 남 | D42: 649 | E42: 0.75 | G42: 39 | H42: 0.53 | J42: 17 | K42: 0.50 | M42: 36 | N42: 0.61 | P42: 53 | Q42: 0.69 | S42: 130 | T42: 1.00 | V42: 60 | W42: 0.61 | Y42: 42 | Z42: 0.71 | AB42: 52 | AC42: 0.70 | AE42: 55 | AF42: 0.73 | AH42: 112 | AI42: 1.35 | AK42: 30 | AL42: 0.43 | AN42: 23 | AO42: 0.69
C43: 여 | D43: 628 | E43: 0.75 | G43: 39 | H43: 0.59 | J43: 17 | K43: 0.55 | M43: 36 | N43: 0.64 | P43: 45 | Q43: 0.58 | S43: 134 | T43: 1.01 | V43: 43 | W43: 0.48 | Y43: 45 | Z43: 0.67 | AB43: 43 | AC43: 0.55 | AE43: 54 | AF43: 0.77 | AH43: 104 | AI43: 1.31 | AK43: 38 | AL43: 0.62 | AN43: 30 | AO43: 1.06
B44: 11세 | C44: 계 | D44: 1,337 | E44: 0.78 | F44: 109.56 | G44: 78 | H44: 0.56 | I44: 110.81 | J44: 37 | K44: 0.57 | L44: 94.74 | M44: 76 | N44: 0.66 | O44: 130.30 | P44: 114 | Q44: 0.74 | R44: 90.00 | S44: 286 | T44: 1.09 | U44: 108.76 | V44: 124 | W44: 0.66 | X44: 100.00 | Y44: 82 | Z44: 0.65 | AA44: 86.36 | AB44: 116 | AC44: 0.76 | AD44: 127.45 | AE44: 94 | AF44: 0.64 | AG44: 84.31 | AH44: 209 | AI44: 1.29 | AJ44: 127.17 | AK44: 75 | AL44: 0.57 | AM44: 158.62 | AN44: 46 | AO44: 0.74 | AP44: 100.00
C45: 남 | D45: 699 | E45: 0.81 | G45: 41 | H45: 0.56 | J45: 18 | K45: 0.53 | M45: 43 | N45: 0.73 | P45: 54 | Q45: 0.70 | S45: 149 | T45: 1.14 | V45: 62 | W45: 0.63 | Y45: 38 | Z45: 0.65 | AB45: 65 | AC45: 0.88 | AE45: 43 | AF45: 0.57 | AH45: 117 | AI45: 1.41 | AK45: 46 | AL45: 0.65 | AN45: 23 | AO45: 0.69
C46: 여 | D46: 638 | E46: 0.76 | G46: 37 | H46: 0.56 | J46: 19 | K46: 0.61 | M46: 33 | N46: 0.59 | P46: 60 | Q46: 0.77 | S46: 137 | T46: 1.03 | V46: 62 | W46: 0.69 | Y46: 44 | Z46: 0.66 | AB46: 51 | AC46: 0.66 | AE46: 51 | AF46: 0.72 | AH46: 92 | AI46: 1.16 | AK46: 29 | AL46: 0.48 | AN46: 23 | AO46: 0.82
B47: 12세 | C47: 계 | D47: 1,431 | E47: 0.84 | F47: 103.56 | G47: 100 | H47: 0.72 | I47: 143.90 | J47: 37 | K47: 0.57 | L47: 164.29 | M47: 83 | N47: 0.72 | O47: 112.82 | P47: 121 | Q47: 0.78 | R47: 86.15 | S47: 327 | T47: 1.24 | U47: 103.11 | V47: 121 | W47: 0.64 | X47: 95.16 | Y47: 90 | Z47: 0.72 | AA47: 109.30 | AB47: 111 | AC47: 0.73 | AD47: 117.65 | AE47: 91 | AF47: 0.62 | AG47: 127.50 | AH47: 202 | AI47: 1.24 | AJ47: 98.04 | AK47: 93 | AL47: 0.71 | AM47: 89.80 | AN47: 55 | AO47: 0.89 | AP47: 52.78
C48: 남 | D48: 728 | E48: 0.84 | G48: 59 | H48: 0.81 | J48: 23 | K48: 0.67 | M48: 44 | N48: 0.75 | P48: 56 | Q48: 0.73 | S48: 166 | T48: 1.27 | V48: 59 | W48: 0.60 | Y48: 47 | Z48: 0.80 | AB48: 60 | AC48: 0.81 | AE48: 51 | AF48: 0.68 | AH48: 100 | AI48: 1.20 | AK48: 44 | AL48: 0.62 | AN48: 19 | AO48: 0.57
C49: 여 | D49: 703 | E49: 0.84 | G49: 41 | H49: 0.62 | J49: 14 | K49: 0.45 | M49: 39 | N49: 0.69 | P49: 65 | Q49: 0.83 | S49: 161 | T49: 1.21 | V49: 62 | W49: 0.69 | Y49: 43 | Z49: 0.64 | AB49: 51 | AC49: 0.66 | AE49: 40 | AF49: 0.57 | AH49: 102 | AI49: 1.28 | AK49: 49 | AL49: 0.81 | AN49: 36 | AO49: 1.28
B50: 13세 | C50: 계 | D50: 1,392 | E50: 0.82 | F50: 114.48 | G50: 84 | H50: 0.60 | I50: 100.00 | J50: 41 | K50: 0.63 | L50: 95.24 | M50: 68 | N50: 0.59 | O50: 134.48 | P50: 135 | Q50: 0.87 | R50: 110.94 | S50: 313 | T50: 1.19 | U50: 112.93 | V50: 136 | W50: 0.72 | X50: 142.86 | Y50: 93 | Z50: 0.74 | AA50: 111.36 | AB50: 120 | AC50: 0.79 | AD50: 130.77 | AE50: 112 | AF50: 0.77 | AG50: 96.49 | AH50: 152 | AI50: 0.93 | AJ50: 111.11 | AK50: 94 | AL50: 0.72 | AM50: 104.35 | AN50: 44 | AO50: 0.71 | AP50: 131.58
C51: 남 | D51: 743 | E51: 0.86 | G51: 42 | H51: 0.57 | J51: 20 | K51: 0.58 | M51: 39 | N51: 0.66 | P51: 71 | Q51: 0.92 | S51: 166 | T51: 1.27 | V51: 80 | W51: 0.82 | Y51: 49 | Z51: 0.83 | AB51: 68 | AC51: 0.92 | AE51: 55 | AF51: 0.73 | AH51: 80 | AI51: 0.96 | AK51: 48 | AL51: 0.68 | AN51: 25 | AO51: 0.75
C52: 여 | D52: 649 | E52: 0.77 | G52: 42 | H52: 0.63 | J52: 21 | K52: 0.68 | M52: 29 | N52: 0.52 | P52: 64 | Q52: 0.82 | S52: 147 | T52: 1.11 | V52: 56 | W52: 0.62 | Y52: 44 | Z52: 0.66 | AB52: 52 | AC52: 0.67 | AE52: 57 | AF52: 0.81 | AH52: 72 | AI52: 0.91 | AK52: 46 | AL52: 0.76 | AN52: 19 | AO52: 0.67
B53: 14세 | C53: 계 | D53: 1,415 | E53: 0.83 | F53: 107.17 | G53: 87 | H53: 0.62 | I53: 128.95 | J53: 43 | K53: 0.66 | L53: 168.75 | M53: 102 | N53: 0.89 | O53: 117.02 | P53: 132 | Q53: 0.85 | R53: 123.73 | S53: 317 | T53: 1.20 | U53: 95.68 | V53: 127 | W53: 0.67 | X53: 130.91 | Y53: 94 | Z53: 0.75 | AA53: 88.00 | AB53: 122 | AC53: 0.80 | AD53: 130.19 | AE53: 80 | AF53: 0.55 | AG53: 90.48 | AH53: 159 | AI53: 0.98 | AJ53: 101.27 | AK53: 87 | AL53: 0.66 | AM53: 97.73 | AN53: 65 | AO53: 1.05 | AP53: 71.05
C54: 남 | D54: 732 | E54: 0.84 | G54: 49 | H54: 0.67 | J54: 27 | K54: 0.79 | M54: 55 | N54: 0.93 | P54: 73 | Q54: 0.95 | S54: 155 | T54: 1.19 | V54: 72 | W54: 0.74 | Y54: 44 | Z54: 0.75 | AB54: 69 | AC54: 0.93 | AE54: 38 | AF54: 0.50 | AH54: 80 | AI54: 0.96 | AK54: 43 | AL54: 0.61 | AN54: 27 | AO54: 0.81
C55: 여 | D55: 683 | E55: 0.81 | G55: 38 | H55: 0.57 | J55: 16 | K55: 0.52 | M55: 47 | N55: 0.84 | P55: 59 | Q55: 0.76 | S55: 162 | T55: 1.22 | V55: 55 | W55: 0.61 | Y55: 50 | Z55: 0.75 | AB55: 53 | AC55: 0.68 | AE55: 42 | AF55: 0.60 | AH55: 79 | AI55: 0.99 | AK55: 44 | AL55: 0.72 | AN55: 38 | AO55: 1.35
B56: 15세 | C56: 계 | D56: 1,499 | E56: 0.88 | F56: 101.48 | G56: 96 | H56: 0.69 | I56: 88.24 | J56: 52 | K56: 0.80 | L56: 108.00 | M56: 73 | N56: 0.63 | O56: 102.78 | P56: 163 | Q56: 1.05 | R56: 106.33 | S56: 332 | T56: 1.26 | U56: 82.42 | V56: 128 | W56: 0.68 | X56: 128.57 | Y56: 109 | Z56: 0.87 | AA56: 105.66 | AB56: 124 | AC56: 0.82 | AD56: 96.83 | AE56: 103 | AF56: 0.71 | AG56: 98.08 | AH56: 144 | AI56: 0.89 | AJ56: 114.93 | AK56: 106 | AL56: 0.81 | AM56: 120.83 | AN56: 69 | AO56: 1.12 | AP56: 115.63
C57: 남 | D57: 755 | E57: 0.87 | G57: 45 | H57: 0.61 | J57: 27 | K57: 0.79 | M57: 37 | N57: 0.63 | P57: 84 | Q57: 1.09 | S57: 150 | T57: 1.15 | V57: 72 | W57: 0.74 | Y57: 56 | Z57: 0.95 | AB57: 61 | AC57: 0.83 | AE57: 51 | AF57: 0.68 | AH57: 77 | AI57: 0.93 | AK57: 58 | AL57: 0.82 | AN57: 37 | AO57: 1.10
C58: 여 | D58: 744 | E58: 0.89 | G58: 51 | H58: 0.77 | J58: 25 | K58: 0.81 | M58: 36 | N58: 0.64 | P58: 79 | Q58: 1.01 | S58: 182 | T58: 1.37 | V58: 56 | W58: 0.62 | Y58: 53 | Z58: 0.79 | AB58: 63 | AC58: 0.81 | AE58: 52 | AF58: 0.74 | AH58: 67 | AI58: 0.84 | AK58: 48 | AL58: 0.79 | AN58: 32 | AO58: 1.13
B59: 16세 | C59: 계 | D59: 1,555 | E59: 0.91 | F59: 113.60 | G59: 93 | H59: 0.67 | I59: 165.71 | J59: 48 | K59: 0.74 | L59: 128.57 | M59: 85 | N59: 0.74 | O59: 117.95 | P59: 161 | Q59: 1.04 | R59: 123.61 | S59: 383 | T59: 1.46 | U59: 105.91 | V59: 148 | W59: 0.79 | X59: 102.74 | Y59: 96 | Z59: 0.76 | AA59: 108.70 | AB59: 144 | AC59: 0.95 | AD59: 102.82 | AE59: 113 | AF59: 0.77 | AG59: 169.05 | AH59: 126 | AI59: 0.78 | AJ59: 96.88 | AK59: 108 | AL59: 0.82 | AM59: 96.36 | AN59: 50 | AO59: 0.81 | AP59: 108.33
C60: 남 | D60: 827 | E60: 0.95 | G60: 58 | H60: 0.79 | J60: 27 | K60: 0.79 | M60: 46 | N60: 0.78 | P60: 89 | Q60: 1.16 | S60: 197 | T60: 1.51 | V60: 75 | W60: 0.77 | Y60: 50 | Z60: 0.85 | AB60: 73 | AC60: 0.99 | AE60: 71 | AF60: 0.94 | AH60: 62 | AI60: 0.75 | AK60: 53 | AL60: 0.75 | AN60: 26 | AO60: 0.78
C61: 여 | D61: 728 | E61: 0.87 | G61: 35 | H61: 0.53 | J61: 21 | K61: 0.68 | M61: 39 | N61: 0.69 | P61: 72 | Q61: 0.92 | S61: 186 | T61: 1.40 | V61: 73 | W61: 0.81 | Y61: 46 | Z61: 0.69 | AB61: 71 | AC61: 0.91 | AE61: 42 | AF61: 0.60 | AH61: 64 | AI61: 0.81 | AK61: 55 | AL61: 0.90 | AN61: 24 | AO61: 0.85
B62: 17세 | C62: 계 | D62: 1,462 | E62: 0.86 | F62: 112.81 | G62: 67 | H62: 0.48 | I62: 103.03 | J62: 35 | K62: 0.54 | L62: 94.44 | M62: 96 | N62: 0.83 | O62: 140.00 | P62: 157 | Q62: 1.01 | R62: 112.16 | S62: 355 | T62: 1.35 | U62: 110.06 | V62: 145 | W62: 0.77 | X62: 98.63 | Y62: 100 | Z62: 0.80 | AA62: 122.22 | AB62: 130 | AC62: 0.86 | AD62: 103.13 | AE62: 105 | AF62: 0.72 | AG62: 191.67 | AH62: 132 | AI62: 0.81 | AJ62: 112.90 | AK62: 97 | AL62: 0.74 | AM62: 102.08 | AN62: 43 | AO62: 0.70 | AP62: 72.00
C63: 남 | D63: 775 | E63: 0.89 | G63: 34 | H63: 0.46 | J63: 17 | K63: 0.50 | M63: 56 | N63: 0.95 | P63: 83 | Q63: 1.08 | S63: 186 | T63: 1.43 | V63: 72 | W63: 0.74 | Y63: 55 | Z63: 0.93 | AB63: 66 | AC63: 0.89 | AE63: 69 | AF63: 0.92 | AH63: 70 | AI63: 0.84 | AK63: 49 | AL63: 0.70 | AN63: 18 | AO63: 0.54
C64: 여 | D64: 687 | E64: 0.82 | G64: 33 | H64: 0.50 | J64: 18 | K64: 0.58 | M64: 40 | N64: 0.71 | P64: 74 | Q64: 0.95 | S64: 169 | T64: 1.27 | V64: 73 | W64: 0.81 | Y64: 45 | Z64: 0.67 | AB64: 64 | AC64: 0.82 | AE64: 36 | AF64: 0.51 | AH64: 62 | AI64: 0.78 | AK64: 48 | AL64: 0.79 | AN64: 25 | AO64: 0.89
B65: 18세 | C65: 계 | D65: 1,512 | E65: 0.89 | F65: 105.71 | G65: 75 | H65: 0.54 | I65: 97.37 | J65: 46 | K65: 0.71 | L65: 130.00 | M65: 86 | N65: 0.75 | O65: 86.96 | P65: 132 | Q65: 0.85 | R65: 83.33 | S65: 357 | T65: 1.36 | U65: 112.50 | V65: 151 | W65: 0.80 | X65: 125.37 | Y65: 106 | Z65: 0.84 | AA65: 85.96 | AB65: 160 | AC65: 1.06 | AD65: 92.77 | AE65: 114 | AF65: 0.78 | AG65: 123.53 | AH65: 133 | AI65: 0.82 | AJ65: 107.81 | AK65: 110 | AL65: 0.84 | AM65: 100.00 | AN65: 42 | AO65: 0.68 | AP65: 200.00
C66: 남 | D66: 777 | E66: 0.90 | G66: 37 | H66: 0.51 | J66: 26 | K66: 0.76 | M66: 40 | N66: 0.68 | P66: 60 | Q66: 0.78 | S66: 189 | T66: 1.45 | V66: 84 | W66: 0.86 | Y66: 49 | Z66: 0.83 | AB66: 77 | AC66: 1.04 | AE66: 63 | AF66: 0.84 | AH66: 69 | AI66: 0.83 | AK66: 55 | AL66: 0.78 | AN66: 28 | AO66: 0.83
C67: 여 | D67: 735 | E67: 0.88 | G67: 38 | H67: 0.57 | J67: 20 | K67: 0.64 | M67: 46 | N67: 0.82 | P67: 72 | Q67: 0.92 | S67: 168 | T67: 1.27 | V67: 67 | W67: 0.74 | Y67: 57 | Z67: 0.85 | AB67: 83 | AC67: 1.07 | AE67: 51 | AF67: 0.72 | AH67: 64 | AI67: 0.81 | AK67: 55 | AL67: 0.90 | AN67: 14 | AO67: 0.50
B68: 19세 | C68: 계 | D68: 1,723 | E68: 1.01 | F68: 125.52 | G68: 174 | H68: 1.25 | I68: 102.33 | J68: 50 | K68: 0.77 | L68: 177.78 | M68: 92 | N68: 0.80 | O68: 130.00 | P68: 187 | Q68: 1.21 | R68: 139.74 | S68: 378 | T68: 1.44 | U68: 133.33 | V68: 172 | W68: 0.91 | X68: 126.32 | Y68: 100 | Z68: 0.80 | AA68: 96.08 | AB68: 148 | AC68: 0.98 | AD68: 150.85 | AE68: 105 | AF68: 0.72 | AG68: 123.40 | AH68: 144 | AI68: 0.89 | AJ68: 105.71 | AK68: 118 | AL68: 0.90 | AM68: 156.52 | AN68: 55 | AO68: 0.89 | AP68: 77.42
C69: 남 | D69: 959 | E69: 1.11 | G69: 88 | H69: 1.20 | J69: 32 | K69: 0.94 | M69: 52 | N69: 0.88 | P69: 109 | Q69: 1.42 | S69: 216 | T69: 1.66 | V69: 96 | W69: 0.98 | Y69: 49 | Z69: 0.83 | AB69: 89 | AC69: 1.21 | AE69: 58 | AF69: 0.77 | AH69: 74 | AI69: 0.89 | AK69: 72 | AL69: 1.02 | AN69: 24 | AO69: 0.72
C70: 여 | D70: 764 | E70: 0.91 | G70: 86 | H70: 1.30 | J70: 18 | K70: 0.58 | M70: 40 | N70: 0.71 | P70: 78 | Q70: 1.00 | S70: 162 | T70: 1.22 | V70: 76 | W70: 0.84 | Y70: 51 | Z70: 0.76 | AB70: 59 | AC70: 0.76 | AE70: 47 | AF70: 0.67 | AH70: 70 | AI70: 0.88 | AK70: 46 | AL70: 0.76 | AN70: 31 | AO70: 1.10
B71: 20세 | C71: 계 | D71: 1,774 | E71: 1.04 | F71: 105.80 | G71: 201 | H71: 1.44 | I71: 59.52 | J71: 60 | K71: 0.92 | L71: 150.00 | M71: 80 | N71: 0.69 | O71: 128.57 | P71: 179 | Q71: 1.16 | R71: 135.53 | S71: 348 | T71: 1.32 | U71: 124.52 | V71: 194 | W71: 1.03 | X71: 94.00 | Y71: 98 | Z71: 0.78 | AA71: 92.16 | AB71: 165 | AC71: 1.09 | AD71: 106.25 | AE71: 135 | AF71: 0.93 | AG71: 110.94 | AH71: 125 | AI71: 0.77 | AJ71: 108.33 | AK71: 139 | AL71: 1.06 | AM71: 104.41 | AN71: 50 | AO71: 0.81 | AP71: 117.39
C72: 남 | D72: 912 | E72: 1.05 | G72: 75 | H72: 1.02 | J72: 36 | K72: 1.05 | M72: 45 | N72: 0.76 | P72: 103 | Q72: 1.34 | S72: 193 | T72: 1.48 | V72: 94 | W72: 0.96 | Y72: 47 | Z72: 0.80 | AB72: 85 | AC72: 1.15 | AE72: 71 | AF72: 0.94 | AH72: 65 | AI72: 0.78 | AK72: 71 | AL72: 1.01 | AN72: 27 | AO72: 0.81
C73: 여 | D73: 862 | E73: 1.03 | G73: 126 | H73: 1.90 | J73: 24 | K73: 0.77 | M73: 35 | N73: 0.62 | P73: 76 | Q73: 0.97 | S73: 155 | T73: 1.17 | V73: 100 | W73: 1.11 | Y73: 51 | Z73: 0.76 | AB73: 80 | AC73: 1.03 | AE73: 64 | AF73: 0.91 | AH73: 60 | AI73: 0.75 | AK73: 68 | AL73: 1.12 | AN73: 23 | AO73: 0.82
B74: 21세 | C74: 계 | D74: 1,856 | E74: 1.09 | F74: 107.14 | G74: 227 | H74: 1.63 | I74: 62.14 | J74: 46 | K74: 0.71 | L74: 109.09 | M74: 96 | N74: 0.83 | O74: 92.00 | P74: 190 | Q74: 1.23 | R74: 86.27 | S74: 340 | T74: 1.29 | U74: 119.35 | V74: 210 | W74: 1.12 | X74: 105.88 | Y74: 98 | Z74: 0.78 | AA74: 117.78 | AB74: 164 | AC74: 1.08 | AD74: 148.48 | AE74: 148 | AF74: 1.01 | AG74: 142.62 | AH74: 132 | AI74: 0.81 | AJ74: 120.00 | AK74: 151 | AL74: 1.15 | AM74: 112.68 | AN74: 54 | AO74: 0.87 | AP74: 145.45
C75: 남 | D75: 960 | E75: 1.11 | G75: 87 | H75: 1.19 | J75: 24 | K75: 0.70 | M75: 46 | N75: 0.78 | P75: 88 | Q75: 1.14 | S75: 185 | T75: 1.42 | V75: 108 | W75: 1.10 | Y75: 53 | Z75: 0.90 | AB75: 98 | AC75: 1.33 | AE75: 87 | AF75: 1.16 | AH75: 72 | AI75: 0.87 | AK75: 80 | AL75: 1.14 | AN75: 32 | AO75: 0.95
C76: 여 | D76: 896 | E76: 1.07 | G76: 140 | H76: 2.11 | J76: 22 | K76: 0.71 | M76: 50 | N76: 0.89 | P76: 102 | Q76: 1.31 | S76: 155 | T76: 1.17 | V76: 102 | W76: 1.13 | Y76: 45 | Z76: 0.67 | AB76: 66 | AC76: 0.85 | AE76: 61 | AF76: 0.86 | AH76: 60 | AI76: 0.75 | AK76: 71 | AL76: 1.17 | AN76: 22 | AO76: 0.78
B77: 22세 | C77: 계 | D77: 2,216 | E77: 1.30 | F77: 115.35 | G77: 259 | H77: 1.86 | I77: 91.85 | J77: 61 | K77: 0.94 | L77: 103.33 | M77: 115 | N77: 1.00 | O77: 144.68 | P77: 196 | Q77: 1.27 | R77: 117.78 | S77: 434 | T77: 1.65 | U77: 121.43 | V77: 246 | W77: 1.31 | X77: 121.62 | Y77: 139 | Z77: 1.11 | AA77: 120.63 | AB77: 222 | AC77: 1.46 | AD77: 111.43 | AE77: 159 | AF77: 1.09 | AG77: 103.85 | AH77: 141 | AI77: 0.87 | AJ77: 182.00 | AK77: 171 | AL77: 1.30 | AM77: 111.11 | AN77: 73 | AO77: 1.18 | AP77: 69.77
C78: 남 | D78: 1,187 | E78: 1.37 | G78: 124 | H78: 1.69 | J78: 31 | K78: 0.91 | M78: 68 | N78: 1.15 | P78: 106 | Q78: 1.38 | S78: 238 | T78: 1.82 | V78: 135 | W78: 1.38 | Y78: 76 | Z78: 1.29 | AB78: 117 | AC78: 1.59 | AE78: 81 | AF78: 1.08 | AH78: 91 | AI78: 1.10 | AK78: 90 | AL78: 1.28 | AN78: 30 | AO78: 0.89
C79: 여 | D79: 1,029 | E79: 1.23 | G79: 135 | H79: 2.04 | J79: 30 | K79: 0.97 | M79: 47 | N79: 0.84 | P79: 90 | Q79: 1.15 | S79: 196 | T79: 1.48 | V79: 111 | W79: 1.23 | Y79: 63 | Z79: 0.94 | AB79: 105 | AC79: 1.35 | AE79: 78 | AF79: 1.11 | AH79: 50 | AI79: 0.63 | AK79: 81 | AL79: 1.33 | AN79: 43 | AO79: 1.52
B80: 23세 | C80: 계 | D80: 2,147 | E80: 1.26 | F80: 128.16 | G80: 261 | H80: 1.87 | I80: 135.14 | J80: 55 | K80: 0.84 | L80: 189.47 | M80: 99 | N80: 0.86 | O80: 135.71 | P80: 181 | Q80: 1.17 | R80: 118.07 | S80: 402 | T80: 1.53 | U80: 119.67 | V80: 301 | W80: 1.60 | X80: 100.67 | Y80: 125 | Z80: 1.00 | AA80: 127.27 | AB80: 190 | AC80: 1.25 | AD80: 153.33 | AE80: 128 | AF80: 0.88 | AG80: 109.84 | AH80: 165 | AI80: 1.01 | AJ80: 135.71 | AK80: 161 | AL80: 1.23 | AM80: 187.50 | AN80: 79 | AO80: 1.28 | AP80: 119.44
C81: 남 | D81: 1,206 | E81: 1.39 | G81: 150 | H81: 2.05 | J81: 36 | K81: 1.05 | M81: 57 | N81: 0.97 | P81: 98 | Q81: 1.27 | S81: 219 | T81: 1.68 | V81: 151 | W81: 1.54 | Y81: 70 | Z81: 1.19 | AB81: 115 | AC81: 1.56 | AE81: 67 | AF81: 0.89 | AH81: 95 | AI81: 1.14 | AK81: 105 | AL81: 1.49 | AN81: 43 | AO81: 1.28
C82: 여 | D82: 941 | E82: 1.12 | G82: 111 | H82: 1.67 | J82: 19 | K82: 0.61 | M82: 42 | N82: 0.75 | P82: 83 | Q82: 1.06 | S82: 183 | T82: 1.38 | V82: 150 | W82: 1.66 | Y82: 55 | Z82: 0.82 | AB82: 75 | AC82: 0.96 | AE82: 61 | AF82: 0.86 | AH82: 70 | AI82: 0.88 | AK82: 56 | AL82: 0.92 | AN82: 36 | AO82: 1.28
B83: 24세 | C83: 계 | D83: 2,242 | E83: 1.32 | F83: 136.50 | G83: 234 | H83: 1.68 | I83: 160.00 | J83: 74 | K83: 1.13 | L83: 174.07 | M83: 120 | N83: 1.04 | O83: 140.00 | P83: 178 | Q83: 1.15 | R83: 169.70 | S83: 386 | T83: 1.47 | U83: 106.42 | V83: 272 | W83: 1.45 | X83: 115.87 | Y83: 128 | Z83: 1.02 | AA83: 124.56 | AB83: 183 | AC83: 1.21 | AD83: 185.94 | AE83: 177 | AF83: 1.21 | AG83: 142.47 | AH83: 179 | AI83: 1.10 | AJ83: 123.75 | AK83: 213 | AL83: 1.62 | AM83: 150.59 | AN83: 98 | AO83: 1.59 | AP83: 127.91
C84: 남 | D84: 1,294 | E84: 1.49 | G84: 144 | H84: 1.97 | J84: 47 | K84: 1.37 | M84: 70 | N84: 1.19 | P84: 112 | Q84: 1.46 | S84: 199 | T84: 1.53 | V84: 146 | W84: 1.49 | Y84: 71 | Z84: 1.21 | AB84: 119 | AC84: 1.61 | AE84: 104 | AF84: 1.38 | AH84: 99 | AI84: 1.19 | AK84: 128 | AL84: 1.82 | AN84: 55 | AO84: 1.64
C85: 여 | D85: 948 | E85: 1.13 | G85: 90 | H85: 1.36 | J85: 27 | K85: 0.87 | M85: 50 | N85: 0.89 | P85: 66 | Q85: 0.85 | S85: 187 | T85: 1.41 | V85: 126 | W85: 1.40 | Y85: 57 | Z85: 0.85 | AB85: 64 | AC85: 0.82 | AE85: 73 | AF85: 1.03 | AH85: 80 | AI85: 1.01 | AK85: 85 | AL85: 1.40 | AN85: 43 | AO85: 1.52
B86: 25세 | C86: 계 | D86: 2,294 | E86: 1.35 | F86: 126.01 | G86: 214 | H86: 1.53 | I86: 109.80 | J86: 62 | K86: 0.95 | L86: 100.00 | M86: 126 | N86: 1.09 | O86: 152.00 | P86: 216 | Q86: 1.39 | R86: 125.00 | S86: 357 | T86: 1.36 | U86: 111.24 | V86: 291 | W86: 1.55 | X86: 127.34 | Y86: 159 | Z86: 1.27 | AA86: 112.00 | AB86: 203 | AC86: 1.34 | AD86: 138.82 | AE86: 177 | AF86: 1.21 | AG86: 149.30 | AH86: 183 | AI86: 1.13 | AJ86: 123.17 | AK86: 196 | AL86: 1.49 | AM86: 148.10 | AN86: 110 | AO86: 1.78 | AP86: 134.04
C87: 남 | D87: 1,279 | E87: 1.48 | G87: 112 | H87: 1.53 | J87: 31 | K87: 0.91 | M87: 76 | N87: 1.29 | P87: 120 | Q87: 1.56 | S87: 188 | T87: 1.44 | V87: 163 | W87: 1.66 | Y87: 84 | Z87: 1.43 | AB87: 118 | AC87: 1.60 | AE87: 106 | AF87: 1.41 | AH87: 101 | AI87: 1.22 | AK87: 117 | AL87: 1.66 | AN87: 63 | AO87: 1.88
C88: 여 | D88: 1,015 | E88: 1.21 | G88: 102 | H88: 1.54 | J88: 31 | K88: 1.00 | M88: 50 | N88: 0.89 | P88: 96 | Q88: 1.23 | S88: 169 | T88: 1.27 | V88: 128 | W88: 1.42 | Y88: 75 | Z88: 1.12 | AB88: 85 | AC88: 1.09 | AE88: 71 | AF88: 1.01 | AH88: 82 | AI88: 1.03 | AK88: 79 | AL88: 1.30 | AN88: 47 | AO88: 1.67
B89: 26세 | C89: 계 | D89: 2,329 | E89: 1.37 | F89: 118.28 | G89: 210 | H89: 1.51 | I89: 118.75 | J89: 72 | K89: 1.10 | L89: 71.43 | M89: 139 | N89: 1.21 | O89: 101.45 | P89: 205 | Q89: 1.32 | R89: 111.34 | S89: 367 | T89: 1.39 | U89: 109.71 | V89: 318 | W89: 1.69 | X89: 123.94 | Y89: 158 | Z89: 1.26 | AA89: 116.44 | AB89: 176 | AC89: 1.16 | AD89: 122.78 | AE89: 185 | AF89: 1.27 | AG89: 120.24 | AH89: 174 | AI89: 1.07 | AJ89: 155.88 | AK89: 208 | AL89: 1.58 | AM89: 131.11 | AN89: 117 | AO89: 1.89 | AP89: 125.00
C90: 남 | D90: 1,262 | E90: 1.46 | G90: 114 | H90: 1.56 | J90: 30 | K90: 0.88 | M90: 70 | N90: 1.19 | P90: 108 | Q90: 1.40 | S90: 192 | T90: 1.47 | V90: 176 | W90: 1.80 | Y90: 85 | Z90: 1.44 | AB90: 97 | AC90: 1.31 | AE90: 101 | AF90: 1.34 | AH90: 106 | AI90: 1.28 | AK90: 118 | AL90: 1.67 | AN90: 65 | AO90: 1.94
C91: 여 | D91: 1,067 | E91: 1.27 | G91: 96 | H91: 1.45 | J91: 42 | K91: 1.35 | M91: 69 | N91: 1.23 | P91: 97 | Q91: 1.24 | S91: 175 | T91: 1.32 | V91: 142 | W91: 1.57 | Y91: 73 | Z91: 1.09 | AB91: 79 | AC91: 1.01 | AE91: 84 | AF91: 1.19 | AH91: 68 | AI91: 0.86 | AK91: 90 | AL91: 1.48 | AN91: 52 | AO91: 1.84
B92: 27세 | C92: 계 | D92: 2,300 | E92: 1.35 | F92: 128.40 | G92: 186 | H92: 1.33 | I92: 129.63 | J92: 79 | K92: 1.21 | L92: 97.50 | M92: 109 | N92: 0.95 | O92: 105.66 | P92: 206 | Q92: 1.33 | R92: 101.96 | S92: 377 | T92: 1.43 | U92: 135.63 | V92: 317 | W92: 1.68 | X92: 133.09 | Y92: 160 | Z92: 1.27 | AA92: 100.00 | AB92: 173 | AC92: 1.14 | AD92: 121.79 | AE92: 210 | AF92: 1.44 | AG92: 159.26 | AH92: 199 | AI92: 1.22 | AJ92: 145.68 | AK92: 199 | AL92: 1.52 | AM92: 155.13 | AN92: 85 | AO92: 1.38 | AP92: 129.73
C93: 남 | D93: 1,293 | E93: 1.49 | G93: 105 | H93: 1.43 | J93: 39 | K93: 1.14 | M93: 56 | N93: 0.95 | P93: 104 | Q93: 1.35 | S93: 217 | T93: 1.66 | V93: 181 | W93: 1.85 | Y93: 80 | Z93: 1.36 | AB93: 95 | AC93: 1.29 | AE93: 129 | AF93: 1.71 | AH93: 118 | AI93: 1.42 | AK93: 121 | AL93: 1.72 | AN93: 48 | AO93: 1.43
C94: 여 | D94: 1,007 | E94: 1.20 | G94: 81 | H94: 1.22 | J94: 40 | K94: 1.29 | M94: 53 | N94: 0.94 | P94: 102 | Q94: 1.31 | S94: 160 | T94: 1.21 | V94: 136 | W94: 1.51 | Y94: 80 | Z94: 1.20 | AB94: 78 | AC94: 1.00 | AE94: 81 | AF94: 1.15 | AH94: 81 | AI94: 1.02 | AK94: 78 | AL94: 1.28 | AN94: 37 | AO94: 1.31
B95: 28세 | C95: 계 | D95: 2,297 | E95: 1.35 | F95: 121.72 | G95: 193 | H95: 1.38 | I95: 150.65 | J95: 82 | K95: 1.26 | L95: 141.18 | M95: 140 | N95: 1.22 | O95: 118.75 | P95: 196 | Q95: 1.27 | R95: 104.17 | S95: 344 | T95: 1.31 | U95: 115.00 | V95: 306 | W95: 1.63 | X95: 131.82 | Y95: 136 | Z95: 1.08 | AA95: 130.51 | AB95: 159 | AC95: 1.05 | AD95: 103.85 | AE95: 207 | AF95: 1.42 | AG95: 130.00 | AH95: 199 | AI95: 1.22 | AJ95: 97.03 | AK95: 227 | AL95: 1.73 | AM95: 127.00 | AN95: 108 | AO95: 1.75 | AP95: 140.00
C96: 남 | D96: 1,261 | E96: 1.45 | G96: 116 | H96: 1.58 | J96: 48 | K96: 1.40 | M96: 76 | N96: 1.29 | P96: 100 | Q96: 1.30 | S96: 184 | T96: 1.41 | V96: 174 | W96: 1.78 | Y96: 77 | Z96: 1.31 | AB96: 81 | AC96: 1.10 | AE96: 117 | AF96: 1.55 | AH96: 98 | AI96: 1.18 | AK96: 127 | AL96: 1.80 | AN96: 63 | AO96: 1.88
C97: 여 | D97: 1,036 | E97: 1.24 | G97: 77 | H97: 1.16 | J97: 34 | K97: 1.10 | M97: 64 | N97: 1.14 | P97: 96 | Q97: 1.23 | S97: 160 | T97: 1.21 | V97: 132 | W97: 1.46 | Y97: 59 | Z97: 0.88 | AB97: 78 | AC97: 1.00 | AE97: 90 | AF97: 1.28 | AH97: 101 | AI97: 1.27 | AK97: 100 | AL97: 1.64 | AN97: 45 | AO97: 1.59
B98: 29세 | C98: 계 | D98: 2,259 | E98: 1.33 | F98: 120.61 | G98: 183 | H98: 1.31 | I98: 128.75 | J98: 56 | K98: 0.86 | L98: 180.00 | M98: 124 | N98: 1.08 | O98: 143.14 | P98: 178 | Q98: 1.15 | R98: 143.84 | S98: 312 | T98: 1.19 | U98: 103.92 | V98: 281 | W98: 1.49 | X98: 138.14 | Y98: 177 | Z98: 1.41 | AA98: 98.88 | AB98: 158 | AC98: 1.04 | AD98: 107.89 | AE98: 197 | AF98: 1.35 | AG98: 107.37 | AH98: 238 | AI98: 1.46 | AJ98: 93.50 | AK98: 243 | AL98: 1.85 | AM98: 150.52 | AN98: 112 | AO98: 1.81 | AP98: 128.57
C99: 남 | D99: 1,235 | E99: 1.42 | G99: 103 | H99: 1.41 | J99: 36 | K99: 1.05 | M99: 73 | N99: 1.24 | P99: 105 | Q99: 1.37 | S99: 159 | T99: 1.22 | V99: 163 | W99: 1.66 | Y99: 88 | Z99: 1.50 | AB99: 82 | AC99: 1.11 | AE99: 102 | AF99: 1.35 | AH99: 115 | AI99: 1.38 | AK99: 146 | AL99: 2.07 | AN99: 63 | AO99: 1.88
C100: 여 | D100: 1,024 | E100: 1.22 | G100: 80 | H100: 1.21 | J100: 20 | K100: 0.64 | M100: 51 | N100: 0.91 | P100: 73 | Q100: 0.94 | S100: 153 | T100: 1.15 | V100: 118 | W100: 1.31 | Y100: 89 | Z100: 1.33 | AB100: 76 | AC100: 0.98 | AE100: 95 | AF100: 1.35 | AH100: 123 | AI100: 1.55 | AK100: 97 | AL100: 1.60 | AN100: 49 | AO100: 1.74
B101: 30세 | C101: 계 | D101: 2,270 | E101: 1.33 | F101: 135.97 | G101: 175 | H101: 1.25 | I101: 157.35 | J101: 74 | K101: 1.13 | L101: 155.17 | M101: 149 | N101: 1.29 | O101: 136.51 | P101: 178 | Q101: 1.15 | R101: 161.76 | S101: 281 | T101: 1.07 | U101: 117.83 | V101: 297 | W101: 1.58 | X101: 147.50 | Y101: 164 | Z101: 1.31 | AA101: 105.00 | AB101: 170 | AC101: 1.12 | AD101: 153.73 | AE101: 247 | AF101: 1.69 | AG101: 111.11 | AH101: 232 | AI101: 1.43 | AJ101: 123.08 | AK101: 204 | AL101: 1.55 | AM101: 168.42 | AN101: 99 | AO101: 1.60 | AP101: 141.46
C102: 남 | D102: 1,308 | E102: 1.51 | G102: 107 | H102: 1.46 | J102: 45 | K102: 1.32 | M102: 86 | N102: 1.46 | P102: 110 | Q102: 1.43 | S102: 152 | T102: 1.17 | V102: 177 | W102: 1.81 | Y102: 84 | Z102: 1.43 | AB102: 103 | AC102: 1.40 | AE102: 130 | AF102: 1.73 | AH102: 128 | AI102: 1.54 | AK102: 128 | AL102: 1.82 | AN102: 58 | AO102: 1.73
C103: 여 | D103: 962 | E103: 1.15 | G103: 68 | H103: 1.03 | J103: 29 | K103: 0.93 | M103: 63 | N103: 1.12 | P103: 68 | Q103: 0.87 | S103: 129 | T103: 0.97 | V103: 120 | W103: 1.33 | Y103: 80 | Z103: 1.20 | AB103: 67 | AC103: 0.86 | AE103: 117 | AF103: 1.66 | AH103: 104 | AI103: 1.31 | AK103: 76 | AL103: 1.25 | AN103: 41 | AO103: 1.45
B104: 31세 | C104: 계 | D104: 2,261 | E104: 1.33 | F104: 131.42 | G104: 163 | H104: 1.17 | I104: 171.67 | J104: 81 | K104: 1.24 | L104: 179.31 | M104: 135 | N104: 1.17 | O104: 170.00 | P104: 182 | Q104: 1.18 | R104: 133.33 | S104: 281 | T104: 1.07 | U104: 117.83 | V104: 280 | W104: 1.49 | X104: 141.38 | Y104: 176 | Z104: 1.40 | AA104: 93.41 | AB104: 150 | AC104: 0.99 | AD104: 114.29 | AE104: 236 | AF104: 1.62 | AG104: 120.56 | AH104: 247 | AI104: 1.52 | AJ104: 91.47 | AK104: 224 | AL104: 1.71 | AM104: 187.18 | AN104: 106 | AO104: 1.72 | AP104: 165.00
C105: 남 | D105: 1,284 | E105: 1.48 | G105: 103 | H105: 1.41 | J105: 52 | K105: 1.52 | M105: 85 | N105: 1.44 | P105: 104 | Q105: 1.35 | S105: 152 | T105: 1.17 | V105: 164 | W105: 1.67 | Y105: 85 | Z105: 1.44 | AB105: 80 | AC105: 1.08 | AE105: 129 | AF105: 1.71 | AH105: 118 | AI105: 1.42 | AK105: 146 | AL105: 2.07 | AN105: 66 | AO105: 1.97
C106: 여 | D106: 977 | E106: 1.17 | G106: 60 | H106: 0.91 | J106: 29 | K106: 0.93 | M106: 50 | N106: 0.89 | P106: 78 | Q106: 1.00 | S106: 129 | T106: 0.97 | V106: 116 | W106: 1.29 | Y106: 91 | Z106: 1.36 | AB106: 70 | AC106: 0.90 | AE106: 107 | AF106: 1.52 | AH106: 129 | AI106: 1.62 | AK106: 78 | AL106: 1.28 | AN106: 40 | AO106: 1.42
B107: 32세 | C107: 계 | D107: 2,020 | E107: 1.18 | F107: 128.25 | G107: 144 | H107: 1.03 | I107: 161.82 | J107: 80 | K107: 1.23 | L107: 158.06 | M107: 95 | N107: 0.83 | O107: 143.59 | P107: 161 | Q107: 1.04 | R107: 159.68 | S107: 252 | T107: 0.96 | U107: 101.60 | V107: 228 | W107: 1.21 | X107: 153.33 | Y107: 156 | Z107: 1.24 | AA107: 77.27 | AB107: 143 | AC107: 0.94 | AD107: 107.25 | AE107: 218 | AF107: 1.49 | AG107: 115.84 | AH107: 266 | AI107: 1.64 | AJ107: 104.62 | AK107: 174 | AL107: 1.33 | AM107: 176.19 | AN107: 103 | AO107: 1.67 | AP107: 221.88
C108: 남 | D108: 1,135 | E108: 1.31 | G108: 89 | H108: 1.22 | J108: 49 | K108: 1.43 | M108: 56 | N108: 0.95 | P108: 99 | Q108: 1.29 | S108: 127 | T108: 0.97 | V108: 138 | W108: 1.41 | Y108: 68 | Z108: 1.16 | AB108: 74 | AC108: 1.00 | AE108: 117 | AF108: 1.55 | AH108: 136 | AI108: 1.64 | AK108: 111 | AL108: 1.58 | AN108: 71 | AO108: 2.12
C109: 여 | D109: 885 | E109: 1.06 | G109: 55 | H109: 0.83 | J109: 31 | K109: 1.00 | M109: 39 | N109: 0.69 | P109: 62 | Q109: 0.80 | S109: 125 | T109: 0.94 | V109: 90 | W109: 1.00 | Y109: 88 | Z109: 1.32 | AB109: 69 | AC109: 0.89 | AE109: 101 | AF109: 1.43 | AH109: 130 | AI109: 1.64 | AK109: 63 | AL109: 1.04 | AN109: 32 | AO109: 1.13
B110: 33세 | C110: 계 | D110: 1,979 | E110: 1.16 | F110: 132.82 | G110: 144 | H110: 1.03 | I110: 166.67 | J110: 83 | K110: 1.27 | L110: 167.74 | M110: 122 | N110: 1.06 | O110: 177.27 | P110: 132 | Q110: 0.85 | R110: 135.71 | S110: 223 | T110: 0.85 | U110: 123.00 | V110: 214 | W110: 1.14 | X110: 135.16 | Y110: 155 | Z110: 1.23 | AA110: 101.30 | AB110: 138 | AC110: 0.91 | AD110: 109.09 | AE110: 249 | AF110: 1.71 | AG110: 132.71 | AH110: 241 | AI110: 1.48 | AJ110: 89.76 | AK110: 168 | AL110: 1.28 | AM110: 180.00 | AN110: 110 | AO110: 1.78 | AP110: 197.30
C111: 남 | D111: 1,129 | E111: 1.30 | G111: 90 | H111: 1.23 | J111: 52 | K111: 1.52 | M111: 78 | N111: 1.32 | P111: 76 | Q111: 0.99 | S111: 123 | T111: 0.94 | V111: 123 | W111: 1.26 | Y111: 78 | Z111: 1.33 | AB111: 72 | AC111: 0.98 | AE111: 142 | AF111: 1.89 | AH111: 114 | AI111: 1.37 | AK111: 108 | AL111: 1.53 | AN111: 73 | AO111: 2.18
C112: 여 | D112: 850 | E112: 1.01 | G112: 54 | H112: 0.81 | J112: 31 | K112: 1.00 | M112: 44 | N112: 0.78 | P112: 56 | Q112: 0.72 | S112: 100 | T112: 0.75 | V112: 91 | W112: 1.01 | Y112: 77 | Z112: 1.15 | AB112: 66 | AC112: 0.85 | AE112: 107 | AF112: 1.52 | AH112: 127 | AI112: 1.60 | AK112: 60 | AL112: 0.99 | AN112: 37 | AO112: 1.31
B113: 34세 | C113: 계 | D113: 1,820 | E113: 1.07 | F113: 135.14 | G113: 132 | H113: 0.95 | I113: 144.44 | J113: 68 | K113: 1.04 | L113: 126.67 | M113: 93 | N113: 0.81 | O113: 158.33 | P113: 132 | Q113: 0.85 | R113: 112.90 | S113: 214 | T113: 0.81 | U113: 116.16 | V113: 196 | W113: 1.04 | X113: 168.49 | Y113: 157 | Z113: 1.25 | AA113: 121.13 | AB113: 137 | AC113: 0.90 | AD113: 114.06 | AE113: 221 | AF113: 1.52 | AG113: 135.11 | AH113: 220 | AI113: 1.35 | AJ113: 113.59 | AK113: 156 | AL113: 1.19 | AM113: 160.00 | AN113: 94 | AO113: 1.52 | AP113: 235.71
C114: 남 | D114: 1,046 | E114: 1.21 | G114: 78 | H114: 1.06 | J114: 38 | K114: 1.11 | M114: 57 | N114: 0.97 | P114: 70 | Q114: 0.91 | S114: 115 | T114: 0.88 | V114: 123 | W114: 1.26 | Y114: 86 | Z114: 1.46 | AB114: 73 | AC114: 0.99 | AE114: 127 | AF114: 1.69 | AH114: 117 | AI114: 1.41 | AK114: 96 | AL114: 1.36 | AN114: 66 | AO114: 1.97
C115: 여 | D115: 774 | E115: 0.92 | G115: 54 | H115: 0.81 | J115: 30 | K115: 0.97 | M115: 36 | N115: 0.64 | P115: 62 | Q115: 0.80 | S115: 99 | T115: 0.75 | V115: 73 | W115: 0.81 | Y115: 71 | Z115: 1.06 | AB115: 64 | AC115: 0.82 | AE115: 94 | AF115: 1.33 | AH115: 103 | AI115: 1.30 | AK115: 60 | AL115: 0.99 | AN115: 28 | AO115: 0.99
B116: 35세 | C116: 계 | D116: 1,820 | E116: 1.07 | F116: 128.07 | G116: 128 | H116: 0.92 | I116: 113.33 | J116: 74 | K116: 1.13 | L116: 124.24 | M116: 103 | N116: 0.89 | O116: 128.89 | P116: 135 | Q116: 0.87 | R116: 132.76 | S116: 244 | T116: 0.93 | U116: 110.34 | V116: 176 | W116: 0.94 | X116: 131.58 | Y116: 162 | Z116: 1.29 | AA116: 116.00 | AB116: 122 | AC116: 0.80 | AD116: 103.33 | AE116: 184 | AF116: 1.26 | AG116: 183.08 | AH116: 263 | AI116: 1.62 | AJ116: 110.40 | AK116: 144 | AL116: 1.10 | AM116: 182.35 | AN116: 85 | AO116: 1.38 | AP116: 150.00
C117: 남 | D117: 1,022 | E117: 1.18 | G117: 68 | H117: 0.93 | J117: 41 | K117: 1.20 | M117: 58 | N117: 0.98 | P117: 77 | Q117: 1.00 | S117: 128 | T117: 0.98 | V117: 100 | W117: 1.02 | Y117: 87 | Z117: 1.48 | AB117: 62 | AC117: 0.84 | AE117: 119 | AF117: 1.58 | AH117: 138 | AI117: 1.66 | AK117: 93 | AL117: 1.32 | AN117: 51 | AO117: 1.52
C118: 여 | D118: 798 | E118: 0.95 | G118: 60 | H118: 0.91 | J118: 33 | K118: 1.06 | M118: 45 | N118: 0.80 | P118: 58 | Q118: 0.74 | S118: 116 | T118: 0.87 | V118: 76 | W118: 0.84 | Y118: 75 | Z118: 1.12 | AB118: 60 | AC118: 0.77 | AE118: 65 | AF118: 0.92 | AH118: 125 | AI118: 1.57 | AK118: 51 | AL118: 0.84 | AN118: 34 | AO118: 1.20
B119: 36세 | C119: 계 | D119: 1,802 | E119: 1.06 | F119: 126.67 | G119: 137 | H119: 0.98 | I119: 136.21 | J119: 56 | K119: 0.86 | L119: 154.55 | M119: 106 | N119: 0.92 | O119: 116.33 | P119: 127 | Q119: 0.82 | R119: 122.81 | S119: 238 | T119: 0.90 | U119: 120.37 | V119: 176 | W119: 0.94 | X119: 151.43 | Y119: 148 | Z119: 1.18 | AA119: 100.00 | AB119: 131 | AC119: 0.86 | AD119: 101.54 | AE119: 170 | AF119: 1.17 | AG119: 157.58 | AH119: 282 | AI119: 1.73 | AJ119: 110.45 | AK119: 160 | AL119: 1.22 | AM119: 131.88 | AN119: 71 | AO119: 1.15 | AP119: 208.70
C120: 남 | D120: 1,007 | E120: 1.16 | G120: 79 | H120: 1.08 | J120: 34 | K120: 0.99 | M120: 57 | N120: 0.97 | P120: 70 | Q120: 0.91 | S120: 130 | T120: 1.00 | V120: 106 | W120: 1.08 | Y120: 74 | Z120: 1.26 | AB120: 66 | AC120: 0.89 | AE120: 104 | AF120: 1.38 | AH120: 148 | AI120: 1.78 | AK120: 91 | AL120: 1.29 | AN120: 48 | AO120: 1.43
C121: 여 | D121: 795 | E121: 0.95 | G121: 58 | H121: 0.88 | J121: 22 | K121: 0.71 | M121: 49 | N121: 0.87 | P121: 57 | Q121: 0.73 | S121: 108 | T121: 0.81 | V121: 70 | W121: 0.78 | Y121: 74 | Z121: 1.11 | AB121: 65 | AC121: 0.84 | AE121: 66 | AF121: 0.94 | AH121: 134 | AI121: 1.69 | AK121: 69 | AL121: 1.13 | AN121: 23 | AO121: 0.82
B122: 37세 | C122: 계 | D122: 1,838 | E122: 1.08 | F122: 116.24 | G122: 145 | H122: 1.04 | I122: 116.42 | J122: 67 | K122: 1.03 | L122: 67.50 | M122: 100 | N122: 0.87 | O122: 143.90 | P122: 139 | Q122: 0.90 | R122: 87.84 | S122: 239 | T122: 0.91 | U122: 107.83 | V122: 198 | W122: 1.05 | X122: 132.94 | Y122: 149 | Z122: 1.19 | AA122: 122.39 | AB122: 109 | AC122: 0.72 | AD122: 153.49 | AE122: 177 | AF122: 1.21 | AG122: 105.81 | AH122: 285 | AI122: 1.75 | AJ122: 109.56 | AK122: 143 | AL122: 1.09 | AM122: 138.33 | AN122: 87 | AO122: 1.41 | AP122: 141.67
C123: 남 | D123: 988 | E123: 1.14 | G123: 78 | H123: 1.06 | J123: 27 | K123: 0.79 | M123: 59 | N123: 1.00 | P123: 65 | Q123: 0.85 | S123: 124 | T123: 0.95 | V123: 113 | W123: 1.15 | Y123: 82 | Z123: 1.39 | AB123: 66 | AC123: 0.89 | AE123: 91 | AF123: 1.21 | AH123: 149 | AI123: 1.79 | AK123: 83 | AL123: 1.18 | AN123: 51 | AO123: 1.52
C124: 여 | D124: 850 | E124: 1.01 | G124: 67 | H124: 1.01 | J124: 40 | K124: 1.29 | M124: 41 | N124: 0.73 | P124: 74 | Q124: 0.95 | S124: 115 | T124: 0.87 | V124: 85 | W124: 0.94 | Y124: 67 | Z124: 1.00 | AB124: 43 | AC124: 0.55 | AE124: 86 | AF124: 1.22 | AH124: 136 | AI124: 1.71 | AK124: 60 | AL124: 0.99 | AN124: 36 | AO124: 1.28
B125: 38세 | C125: 계 | D125: 1,784 | E125: 1.05 | F125: 115.20 | G125: 116 | H125: 0.83 | I125: 146.81 | J125: 69 | K125: 1.06 | L125: 109.09 | M125: 105 | N125: 0.91 | O125: 128.26 | P125: 121 | Q125: 0.78 | R125: 128.30 | S125: 243 | T125: 0.92 | U125: 102.50 | V125: 174 | W125: 0.92 | X125: 117.50 | Y125: 138 | Z125: 1.10 | AA125: 100.00 | AB125: 125 | AC125: 0.82 | AD125: 111.86 | AE125: 183 | AF125: 1.25 | AG125: 117.86 | AH125: 290 | AI125: 1.78 | AJ125: 92.05 | AK125: 144 | AL125: 1.10 | AM125: 136.07 | AN125: 76 | AO125: 1.23 | AP125: 192.31
C126: 남 | D126: 955 | E126: 1.10 | G126: 69 | H126: 0.94 | J126: 36 | K126: 1.05 | M126: 59 | N126: 1.00 | P126: 68 | Q126: 0.88 | S126: 123 | T126: 0.94 | V126: 94 | W126: 0.96 | Y126: 69 | Z126: 1.17 | AB126: 66 | AC126: 0.89 | AE126: 99 | AF126: 1.31 | AH126: 139 | AI126: 1.67 | AK126: 83 | AL126: 1.18 | AN126: 50 | AO126: 1.49
C127: 여 | D127: 829 | E127: 0.99 | G127: 47 | H127: 0.71 | J127: 33 | K127: 1.06 | M127: 46 | N127: 0.82 | P127: 53 | Q127: 0.68 | S127: 120 | T127: 0.90 | V127: 80 | W127: 0.89 | Y127: 69 | Z127: 1.03 | AB127: 59 | AC127: 0.76 | AE127: 84 | AF127: 1.19 | AH127: 151 | AI127: 1.90 | AK127: 61 | AL127: 1.00 | AN127: 26 | AO127: 0.92
B128: 39세 | C128: 계 | D128: 1,849 | E128: 1.08 | F128: 114.75 | G128: 119 | H128: 0.85 | I128: 112.50 | J128: 61 | K128: 0.94 | L128: 84.85 | M128: 108 | N128: 0.94 | O128: 89.47 | P128: 139 | Q128: 0.90 | R128: 124.19 | S128: 275 | T128: 1.04 | U128: 95.04 | V128: 182 | W128: 0.97 | X128: 139.47 | Y128: 137 | Z128: 1.09 | AA128: 140.35 | AB128: 133 | AC128: 0.88 | AD128: 87.32 | AE128: 170 | AF128: 1.17 | AG128: 132.88 | AH128: 290 | AI128: 1.78 | AJ128: 95.95 | AK128: 130 | AL128: 0.99 | AM128: 150.00 | AN128: 105 | AO128: 1.70 | AP128: 200.00
C129: 남 | D129: 988 | E129: 1.14 | G129: 63 | H129: 0.86 | J129: 28 | K129: 0.82 | M129: 51 | N129: 0.87 | P129: 77 | Q129: 1.00 | S129: 134 | T129: 1.03 | V129: 106 | W129: 1.08 | Y129: 80 | Z129: 1.36 | AB129: 62 | AC129: 0.84 | AE129: 97 | AF129: 1.29 | AH129: 142 | AI129: 1.71 | AK129: 78 | AL129: 1.11 | AN129: 70 | AO129: 2.09
C130: 여 | D130: 861 | E130: 1.03 | G130: 56 | H130: 0.84 | J130: 33 | K130: 1.06 | M130: 57 | N130: 1.01 | P130: 62 | Q130: 0.80 | S130: 141 | T130: 1.06 | V130: 76 | W130: 0.84 | Y130: 57 | Z130: 0.85 | AB130: 71 | AC130: 0.91 | AE130: 73 | AF130: 1.03 | AH130: 148 | AI130: 1.86 | AK130: 52 | AL130: 0.86 | AN130: 35 | AO130: 1.24
B131: 40세 | C131: 계 | D131: 2,047 | E131: 1.20 | F131: 123.23 | G131: 127 | H131: 0.91 | I131: 170.21 | J131: 78 | K131: 1.20 | L131: 151.61 | M131: 103 | N131: 0.89 | O131: 145.24 | P131: 163 | Q131: 1.05 | R131: 126.39 | S131: 321 | T131: 1.22 | U131: 100.63 | V131: 231 | W131: 1.23 | X131: 117.92 | Y131: 146 | Z131: 1.16 | AA131: 105.63 | AB131: 153 | AC131: 1.01 | AD131: 109.59 | AE131: 195 | AF131: 1.34 | AG131: 163.51 | AH131: 316 | AI131: 1.94 | AJ131: 114.97 | AK131: 131 | AL131: 1.00 | AM131: 118.33 | AN131: 83 | AO131: 1.34 | AP131: 144.12
C132: 남 | D132: 1,130 | E132: 1.30 | G132: 80 | H132: 1.09 | J132: 47 | K132: 1.37 | M132: 61 | N132: 1.03 | P132: 91 | Q132: 1.18 | S132: 161 | T132: 1.23 | V132: 125 | W132: 1.28 | Y132: 75 | Z132: 1.27 | AB132: 80 | AC132: 1.08 | AE132: 121 | AF132: 1.61 | AH132: 169 | AI132: 2.03 | AK132: 71 | AL132: 1.01 | AN132: 49 | AO132: 1.46
C133: 여 | D133: 917 | E133: 1.09 | G133: 47 | H133: 0.71 | J133: 31 | K133: 1.00 | M133: 42 | N133: 0.75 | P133: 72 | Q133: 0.92 | S133: 160 | T133: 1.21 | V133: 106 | W133: 1.17 | Y133: 71 | Z133: 1.06 | AB133: 73 | AC133: 0.94 | AE133: 74 | AF133: 1.05 | AH133: 147 | AI133: 1.85 | AK133: 60 | AL133: 0.99 | AN133: 34 | AO133: 1.20
B134: 41세 | C134: 계 | D134: 2,284 | E134: 1.34 | F134: 108.58 | G134: 163 | H134: 1.17 | I134: 146.97 | J134: 106 | K134: 1.62 | L134: 92.73 | M134: 139 | N134: 1.21 | O134: 101.45 | P134: 176 | Q134: 1.14 | R134: 112.05 | S134: 357 | T134: 1.36 | U134: 95.08 | V134: 231 | W134: 1.23 | X134: 106.25 | Y134: 143 | Z134: 1.14 | AA134: 90.67 | AB134: 188 | AC134: 1.24 | AD134: 104.35 | AE134: 199 | AF134: 1.36 | AG134: 101.01 | AH134: 329 | AI134: 2.02 | AJ134: 100.61 | AK134: 159 | AL134: 1.21 | AM134: 156.45 | AN134: 94 | AO134: 1.52 | AP134: 168.57
C135: 남 | D135: 1,189 | E135: 1.37 | G135: 97 | H135: 1.32 | J135: 51 | K135: 1.49 | M135: 70 | N135: 1.19 | P135: 93 | Q135: 1.21 | S135: 174 | T135: 1.33 | V135: 119 | W135: 1.21 | Y135: 68 | Z135: 1.16 | AB135: 96 | AC135: 1.30 | AE135: 100 | AF135: 1.33 | AH135: 165 | AI135: 1.99 | AK135: 97 | AL135: 1.38 | AN135: 59 | AO135: 1.76
C136: 여 | D136: 1,095 | E136: 1.31 | G136: 66 | H136: 1.00 | J136: 55 | K136: 1.77 | M136: 69 | N136: 1.23 | P136: 83 | Q136: 1.06 | S136: 183 | T136: 1.38 | V136: 112 | W136: 1.24 | Y136: 75 | Z136: 1.12 | AB136: 92 | AC136: 1.18 | AE136: 99 | AF136: 1.40 | AH136: 164 | AI136: 2.06 | AK136: 62 | AL136: 1.02 | AN136: 35 | AO136: 1.24
B137: 42세 | C137: 계 | D137: 2,366 | E137: 1.39 | F137: 118.27 | G137: 151 | H137: 1.08 | I137: 164.91 | J137: 107 | K137: 1.64 | L137: 181.58 | M137: 142 | N137: 1.23 | O137: 102.86 | P137: 201 | Q137: 1.30 | R137: 103.03 | S137: 391 | T137: 1.49 | U137: 81.86 | V137: 245 | W137: 1.30 | X137: 163.44 | Y137: 171 | Z137: 1.36 | AA137: 119.23 | AB137: 161 | AC137: 1.06 | AD137: 98.77 | AE137: 185 | AF137: 1.27 | AG137: 131.25 | AH137: 308 | AI137: 1.89 | AJ137: 131.58 | AK137: 186 | AL137: 1.42 | AM137: 111.36 | AN137: 118 | AO137: 1.91 | AP137: 126.92
C138: 남 | D138: 1,282 | E138: 1.48 | G138: 94 | H138: 1.28 | J138: 69 | K138: 2.02 | M138: 72 | N138: 1.22 | P138: 102 | Q138: 1.33 | S138: 176 | T138: 1.35 | V138: 152 | W138: 1.55 | Y138: 93 | Z138: 1.58 | AB138: 80 | AC138: 1.08 | AE138: 105 | AF138: 1.39 | AH138: 175 | AI138: 2.11 | AK138: 98 | AL138: 1.39 | AN138: 66 | AO138: 1.97
C139: 여 | D139: 1,084 | E139: 1.29 | G139: 57 | H139: 0.86 | J139: 38 | K139: 1.23 | M139: 70 | N139: 1.25 | P139: 99 | Q139: 1.27 | S139: 215 | T139: 1.62 | V139: 93 | W139: 1.03 | Y139: 78 | Z139: 1.17 | AB139: 81 | AC139: 1.04 | AE139: 80 | AF139: 1.13 | AH139: 133 | AI139: 1.67 | AK139: 88 | AL139: 1.45 | AN139: 52 | AO139: 1.84
B140: 43세 | C140: 계 | D140: 2,319 | E140: 1.36 | F140: 102.53 | G140: 175 | H140: 1.25 | I140: 110.84 | J140: 90 | K140: 1.38 | L140: 114.29 | M140: 140 | N140: 1.22 | O140: 89.19 | P140: 217 | Q140: 1.40 | R140: 100.93 | S140: 359 | T140: 1.36 | U140: 90.96 | V140: 238 | W140: 1.26 | X140: 110.62 | Y140: 165 | Z140: 1.31 | AA140: 94.12 | AB140: 171 | AC140: 1.13 | AD140: 85.87 | AE140: 174 | AF140: 1.19 | AG140: 117.50 | AH140: 321 | AI140: 1.97 | AJ140: 114.00 | AK140: 162 | AL140: 1.23 | AM140: 100.00 | AN140: 107 | AO140: 1.73 | AP140: 118.37
C141: 남 | D141: 1,174 | E141: 1.35 | G141: 92 | H141: 1.26 | J141: 48 | K141: 1.40 | M141: 66 | N141: 1.12 | P141: 109 | Q141: 1.42 | S141: 171 | T141: 1.31 | V141: 125 | W141: 1.28 | Y141: 80 | Z141: 1.36 | AB141: 79 | AC141: 1.07 | AE141: 94 | AF141: 1.25 | AH141: 171 | AI141: 2.06 | AK141: 81 | AL141: 1.15 | AN141: 58 | AO141: 1.73
C142: 여 | D142: 1,145 | E142: 1.37 | G142: 83 | H142: 1.25 | J142: 42 | K142: 1.35 | M142: 74 | N142: 1.32 | P142: 108 | Q142: 1.39 | S142: 188 | T142: 1.42 | V142: 113 | W142: 1.25 | Y142: 85 | Z142: 1.27 | AB142: 92 | AC142: 1.18 | AE142: 80 | AF142: 1.13 | AH142: 150 | AI142: 1.89 | AK142: 81 | AL142: 1.33 | AN142: 49 | AO142: 1.74
B143: 44세 | C143: 계 | D143: 2,360 | E143: 1.38 | F143: 113.00 | G143: 169 | H143: 1.21 | I143: 113.92 | J143: 87 | K143: 1.33 | L143: 107.14 | M143: 114 | N143: 0.99 | O143: 132.65 | P143: 226 | Q143: 1.46 | R143: 88.33 | S143: 424 | T143: 1.61 | U143: 89.29 | V143: 250 | W143: 1.33 | X143: 121.24 | Y143: 171 | Z143: 1.36 | AA143: 119.23 | AB143: 203 | AC143: 1.34 | AD143: 103.00 | AE143: 176 | AF143: 1.21 | AG143: 122.78 | AH143: 271 | AI143: 1.67 | AJ143: 168.32 | AK143: 158 | AL143: 1.20 | AM143: 105.19 | AN143: 111 | AO143: 1.80 | AP143: 141.30
C144: 남 | D144: 1,252 | E144: 1.44 | G144: 90 | H144: 1.23 | J144: 45 | K144: 1.32 | M144: 65 | N144: 1.10 | P144: 106 | Q144: 1.38 | S144: 200 | T144: 1.53 | V144: 137 | W144: 1.40 | Y144: 93 | Z144: 1.58 | AB144: 103 | AC144: 1.40 | AE144: 97 | AF144: 1.29 | AH144: 170 | AI144: 2.05 | AK144: 81 | AL144: 1.15 | AN144: 65 | AO144: 1.94
C145: 여 | D145: 1,108 | E145: 1.32 | G145: 79 | H145: 1.19 | J145: 42 | K145: 1.35 | M145: 49 | N145: 0.87 | P145: 120 | Q145: 1.54 | S145: 224 | T145: 1.69 | V145: 113 | W145: 1.25 | Y145: 78 | Z145: 1.17 | AB145: 100 | AC145: 1.28 | AE145: 79 | AF145: 1.12 | AH145: 101 | AI145: 1.27 | AK145: 77 | AL145: 1.27 | AN145: 46 | AO145: 1.63
B146: 45세 | C146: 계 | D146: 2,287 | E146: 1.34 | F146: 105.48 | G146: 150 | H146: 1.08 | I146: 111.27 | J146: 89 | K146: 1.36 | L146: 161.76 | M146: 144 | N146: 1.25 | O146: 121.54 | P146: 201 | Q146: 1.30 | R146: 107.22 | S146: 414 | T146: 1.57 | U146: 78.45 | V146: 281 | W146: 1.49 | X146: 109.70 | Y146: 130 | Z146: 1.04 | AA146: 116.67 | AB146: 159 | AC146: 1.05 | AD146: 96.30 | AE146: 193 | AF146: 1.32 | AG146: 94.95 | AH146: 247 | AI146: 1.52 | AJ146: 114.78 | AK146: 171 | AL146: 1.30 | AM146: 111.11 | AN146: 108 | AO146: 1.75 | AP146: 145.45
C147: 남 | D147: 1,174 | E147: 1.35 | G147: 79 | H147: 1.08 | J147: 55 | K147: 1.61 | M147: 79 | N147: 1.34 | P147: 104 | Q147: 1.35 | S147: 182 | T147: 1.40 | V147: 147 | W147: 1.50 | Y147: 70 | Z147: 1.19 | AB147: 78 | AC147: 1.06 | AE147: 94 | AF147: 1.25 | AH147: 132 | AI147: 1.59 | AK147: 90 | AL147: 1.28 | AN147: 64 | AO147: 1.91
C148: 여 | D148: 1,113 | E148: 1.33 | G148: 71 | H148: 1.07 | J148: 34 | K148: 1.10 | M148: 65 | N148: 1.16 | P148: 97 | Q148: 1.24 | S148: 232 | T148: 1.75 | V148: 134 | W148: 1.48 | Y148: 60 | Z148: 0.90 | AB148: 81 | AC148: 1.04 | AE148: 99 | AF148: 1.40 | AH148: 115 | AI148: 1.45 | AK148: 81 | AL148: 1.33 | AN148: 44 | AO148: 1.56
B149: 46세 | C149: 계 | D149: 2,345 | E149: 1.38 | F149: 107.16 | G149: 170 | H149: 1.22 | I149: 139.44 | J149: 76 | K149: 1.16 | L149: 123.53 | M149: 140 | N149: 1.22 | O149: 159.26 | P149: 200 | Q149: 1.29 | R149: 100.00 | S149: 432 | T149: 1.64 | U149: 90.31 | V149: 248 | W149: 1.32 | X149: 131.78 | Y149: 145 | Z149: 1.15 | AA149: 72.62 | AB149: 204 | AC149: 1.35 | AD149: 67.21 | AE149: 182 | AF149: 1.25 | AG149: 119.28 | AH149: 266 | AI149: 1.64 | AJ149: 119.83 | AK149: 182 | AL149: 1.39 | AM149: 133.33 | AN149: 100 | AO149: 1.62 | AP149: 96.08
C150: 남 | D150: 1,213 | E150: 1.40 | G150: 99 | H150: 1.35 | J150: 42 | K150: 1.23 | M150: 86 | N150: 1.46 | P150: 100 | Q150: 1.30 | S150: 205 | T150: 1.57 | V150: 141 | W150: 1.44 | Y150: 61 | Z150: 1.04 | AB150: 82 | AC150: 1.11 | AE150: 99 | AF150: 1.31 | AH150: 145 | AI150: 1.75 | AK150: 104 | AL150: 1.48 | AN150: 49 | AO150: 1.46
C151: 여 | D151: 1,132 | E151: 1.35 | G151: 71 | H151: 1.07 | J151: 34 | K151: 1.10 | M151: 54 | N151: 0.96 | P151: 100 | Q151: 1.28 | S151: 227 | T151: 1.71 | V151: 107 | W151: 1.19 | Y151: 84 | Z151: 1.26 | AB151: 122 | AC151: 1.57 | AE151: 83 | AF151: 1.18 | AH151: 121 | AI151: 1.52 | AK151: 78 | AL151: 1.28 | AN151: 51 | AO151: 1.81
B152: 47세 | C152: 계 | D152: 2,416 | E152: 1.42 | F152: 97.22 | G152: 179 | H152: 1.28 | I152: 123.75 | J152: 85 | K152: 1.30 | L152: 84.78 | M152: 141 | N152: 1.22 | O152: 107.35 | P152: 229 | Q152: 1.48 | R152: 100.88 | S152: 425 | T152: 1.61 | U152: 72.76 | V152: 273 | W152: 1.45 | X152: 121.95 | Y152: 141 | Z152: 1.12 | AA152: 83.12 | AB152: 216 | AC152: 1.42 | AD152: 107.69 | AE152: 198 | AF152: 1.36 | AG152: 75.22 | AH152: 229 | AI152: 1.41 | AJ152: 112.04 | AK152: 203 | AL152: 1.55 | AM152: 86.24 | AN152: 97 | AO152: 1.57 | AP152: 162.16
C153: 남 | D153: 1,191 | E153: 1.37 | G153: 99 | H153: 1.35 | J153: 39 | K153: 1.14 | M153: 73 | N153: 1.24 | P153: 115 | Q153: 1.50 | S153: 179 | T153: 1.37 | V153: 150 | W153: 1.53 | Y153: 64 | Z153: 1.09 | AB153: 112 | AC153: 1.52 | AE153: 85 | AF153: 1.13 | AH153: 121 | AI153: 1.46 | AK153: 94 | AL153: 1.33 | AN153: 60 | AO153: 1.79
C154: 여 | D154: 1,225 | E154: 1.46 | G154: 80 | H154: 1.21 | J154: 46 | K154: 1.48 | M154: 68 | N154: 1.21 | P154: 114 | Q154: 1.46 | S154: 246 | T154: 1.85 | V154: 123 | W154: 1.36 | Y154: 77 | Z154: 1.15 | AB154: 104 | AC154: 1.34 | AE154: 113 | AF154: 1.60 | AH154: 108 | AI154: 1.36 | AK154: 109 | AL154: 1.79 | AN154: 37 | AO154: 1.31
B155: 48세 | C155: 계 | D155: 2,579 | E155: 1.51 | F155: 100.08 | G155: 183 | H155: 1.31 | I155: 112.79 | J155: 96 | K155: 1.47 | L155: 146.15 | M155: 175 | N155: 1.52 | O155: 124.36 | P155: 207 | Q155: 1.34 | R155: 93.46 | S155: 498 | T155: 1.89 | U155: 75.35 | V155: 308 | W155: 1.64 | X155: 90.12 | Y155: 173 | Z155: 1.38 | AA155: 110.98 | AB155: 209 | AC155: 1.38 | AD155: 63.28 | AE155: 225 | AF155: 1.54 | AG155: 110.28 | AH155: 231 | AI155: 1.42 | AJ155: 131.00 | AK155: 193 | AL155: 1.47 | AM155: 138.27 | AN155: 81 | AO155: 1.31 | AP155: 131.43
C156: 남 | D156: 1,290 | E156: 1.49 | G156: 97 | H156: 1.32 | J156: 57 | K156: 1.67 | M156: 97 | N156: 1.65 | P156: 100 | Q156: 1.30 | S156: 214 | T156: 1.64 | V156: 146 | W156: 1.49 | Y156: 91 | Z156: 1.55 | AB156: 81 | AC156: 1.10 | AE156: 118 | AF156: 1.57 | AH156: 131 | AI156: 1.58 | AK156: 112 | AL156: 1.59 | AN156: 46 | AO156: 1.37
C157: 여 | D157: 1,289 | E157: 1.54 | G157: 86 | H157: 1.30 | J157: 39 | K157: 1.26 | M157: 78 | N157: 1.39 | P157: 107 | Q157: 1.37 | S157: 284 | T157: 2.14 | V157: 162 | W157: 1.80 | Y157: 82 | Z157: 1.23 | AB157: 128 | AC157: 1.64 | AE157: 107 | AF157: 1.52 | AH157: 100 | AI157: 1.26 | AK157: 81 | AL157: 1.33 | AN157: 35 | AO157: 1.24
B158: 49세 | C158: 계 | D158: 3,031 | E158: 1.78 | F158: 105.21 | G158: 201 | H158: 1.44 | I158: 183.10 | J158: 114 | K158: 1.75 | L158: 128.00 | M158: 189 | N158: 1.64 | O158: 92.86 | P158: 308 | Q158: 1.99 | R158: 93.71 | S158: 570 | T158: 2.17 | U158: 88.12 | V158: 349 | W158: 1.85 | X158: 129.61 | Y158: 182 | Z158: 1.45 | AA158: 109.20 | AB158: 274 | AC158: 1.81 | AD158: 70.19 | AE158: 236 | AF158: 1.62 | AG158: 120.56 | AH158: 249 | AI158: 1.53 | AJ158: 87.22 | AK158: 235 | AL158: 1.79 | AM158: 142.27 | AN158: 124 | AO158: 2.01 | AP158: 110.17
C159: 남 | D159: 1,554 | E159: 1.79 | G159: 130 | H159: 1.77 | J159: 64 | K159: 1.87 | M159: 91 | N159: 1.54 | P159: 149 | Q159: 1.94 | S159: 267 | T159: 2.05 | V159: 197 | W159: 2.01 | Y159: 95 | Z159: 1.61 | AB159: 113 | AC159: 1.53 | AE159: 129 | AF159: 1.71 | AH159: 116 | AI159: 1.40 | AK159: 138 | AL159: 1.96 | AN159: 65 | AO159: 1.94
C160: 여 | D160: 1,477 | E160: 1.76 | G160: 71 | H160: 1.07 | J160: 50 | K160: 1.61 | M160: 98 | N160: 1.74 | P160: 159 | Q160: 2.04 | S160: 303 | T160: 2.28 | V160: 152 | W160: 1.68 | Y160: 87 | Z160: 1.30 | AB160: 161 | AC160: 2.07 | AE160: 107 | AF160: 1.52 | AH160: 133 | AI160: 1.67 | AK160: 97 | AL160: 1.60 | AN160: 59 | AO160: 2.09
B161: 50세 | C161: 계 | D161: 3,102 | E161: 1.82 | F161: 100.39 | G161: 220 | H161: 1.58 | I161: 139.13 | J161: 120 | K161: 1.84 | L161: 135.29 | M161: 189 | N161: 1.64 | O161: 103.23 | P161: 313 | Q161: 2.02 | R161: 99.36 | S161: 555 | T161: 2.11 | U161: 79.03 | V161: 341 | W161: 1.81 | X161: 121.43 | Y161: 215 | Z161: 1.71 | AA161: 83.76 | AB161: 266 | AC161: 1.75 | AD161: 72.73 | AE161: 230 | AF161: 1.58 | AG161: 109.09 | AH161: 276 | AI161: 1.70 | AJ161: 93.01 | AK161: 255 | AL161: 1.94 | AM161: 114.29 | AN161: 122 | AO161: 1.98 | AP161: 154.17
C162: 남 | D162: 1,554 | E162: 1.79 | G162: 128 | H162: 1.75 | J162: 69 | K162: 2.02 | M162: 96 | N162: 1.63 | P162: 156 | Q162: 2.03 | S162: 245 | T162: 1.88 | V162: 187 | W162: 1.91 | Y162: 98 | Z162: 1.67 | AB162: 112 | AC162: 1.52 | AE162: 120 | AF162: 1.59 | AH162: 133 | AI162: 1.60 | AK162: 136 | AL162: 1.93 | AN162: 74 | AO162: 2.21
C163: 여 | D163: 1,548 | E163: 1.85 | G163: 92 | H163: 1.39 | J163: 51 | K163: 1.64 | M163: 93 | N163: 1.66 | P163: 157 | Q163: 2.01 | S163: 310 | T163: 2.34 | V163: 154 | W163: 1.71 | Y163: 117 | Z163: 1.75 | AB163: 154 | AC163: 1.98 | AE163: 110 | AF163: 1.56 | AH163: 143 | AI163: 1.80 | AK163: 119 | AL163: 1.96 | AN163: 48 | AO163: 1.70
B164: 51세 | C164: 계 | D164: 3,013 | E164: 1.77 | F164: 100.47 | G164: 215 | H164: 1.54 | I164: 150.00 | J164: 126 | K164: 1.93 | L164: 133.33 | M164: 201 | N164: 1.75 | O164: 113.83 | P164: 282 | Q164: 1.82 | R164: 90.54 | S164: 599 | T164: 2.28 | U164: 77.74 | V164: 342 | W164: 1.82 | X164: 117.83 | Y164: 159 | Z164: 1.27 | AA164: 63.92 | AB164: 266 | AC164: 1.75 | AD164: 70.51 | AE164: 224 | AF164: 1.54 | AG164: 128.57 | AH164: 253 | AI164: 1.56 | AJ164: 83.33 | AK164: 243 | AL164: 1.85 | AM164: 158.51 | AN164: 103 | AO164: 1.67 | AP164: 134.09
C165: 남 | D165: 1,510 | E165: 1.74 | G165: 129 | H165: 1.76 | J165: 72 | K165: 2.10 | M165: 107 | N165: 1.82 | P165: 134 | Q165: 1.74 | S165: 262 | T165: 2.01 | V165: 185 | W165: 1.89 | Y165: 62 | Z165: 1.05 | AB165: 110 | AC165: 1.49 | AE165: 126 | AF165: 1.67 | AH165: 115 | AI165: 1.38 | AK165: 149 | AL165: 2.11 | AN165: 59 | AO165: 1.76
C166: 여 | D166: 1,503 | E166: 1.79 | G166: 86 | H166: 1.30 | J166: 54 | K166: 1.74 | M166: 94 | N166: 1.67 | P166: 148 | Q166: 1.90 | S166: 337 | T166: 2.54 | V166: 157 | W166: 1.74 | Y166: 97 | Z166: 1.45 | AB166: 156 | AC166: 2.00 | AE166: 98 | AF166: 1.39 | AH166: 138 | AI166: 1.74 | AK166: 94 | AL166: 1.55 | AN166: 44 | AO166: 1.56
B167: 52세 | C167: 계 | D167: 3,477 | E167: 2.04 | F167: 97.56 | G167: 223 | H167: 1.60 | I167: 114.42 | J167: 134 | K167: 2.05 | L167: 119.67 | M167: 226 | N167: 1.96 | O167: 111.21 | P167: 337 | Q167: 2.18 | R167: 89.33 | S167: 657 | T167: 2.50 | U167: 84.55 | V167: 389 | W167: 2.07 | X167: 113.74 | Y167: 245 | Z167: 1.95 | AA167: 65.54 | AB167: 314 | AC167: 2.07 | AD167: 91.46 | AE167: 282 | AF167: 1.93 | AG167: 89.26 | AH167: 270 | AI167: 1.66 | AJ167: 90.14 | AK167: 263 | AL167: 2.00 | AM167: 155.34 | AN167: 137 | AO167: 2.22 | AP167: 107.58
C168: 남 | D168: 1,717 | E168: 1.98 | G168: 119 | H168: 1.62 | J168: 73 | K168: 2.13 | M168: 119 | N168: 2.02 | P168: 159 | Q168: 2.07 | S168: 301 | T168: 2.31 | V168: 207 | W168: 2.11 | Y168: 97 | Z168: 1.65 | AB168: 150 | AC168: 2.03 | AE168: 133 | AF168: 1.77 | AH168: 128 | AI168: 1.54 | AK168: 160 | AL168: 2.27 | AN168: 71 | AO168: 2.12
C169: 여 | D169: 1,760 | E169: 2.10 | G169: 104 | H169: 1.57 | J169: 61 | K169: 1.97 | M169: 107 | N169: 1.90 | P169: 178 | Q169: 2.28 | S169: 356 | T169: 2.68 | V169: 182 | W169: 2.02 | Y169: 148 | Z169: 2.22 | AB169: 164 | AC169: 2.11 | AE169: 149 | AF169: 2.11 | AH169: 142 | AI169: 1.79 | AK169: 103 | AL169: 1.69 | AN169: 66 | AO169: 2.34
B170: 53세 | C170: 계 | D170: 3,413 | E170: 2.00 | F170: 105.73 | G170: 229 | H170: 1.64 | I170: 169.41 | J170: 138 | K170: 2.12 | L170: 126.23 | M170: 208 | N170: 1.81 | O170: 108.00 | P170: 340 | Q170: 2.20 | R170: 107.32 | S170: 631 | T170: 2.40 | U170: 102.24 | V170: 365 | W170: 1.94 | X170: 115.98 | Y170: 264 | Z170: 2.10 | AA170: 74.83 | AB170: 311 | AC170: 2.05 | AD170: 96.84 | AE170: 275 | AF170: 1.89 | AG170: 106.77 | AH170: 267 | AI170: 1.64 | AJ170: 108.59 | AK170: 251 | AL170: 1.91 | AM170: 88.72 | AN170: 134 | AO170: 2.17 | AP170: 106.15
C171: 남 | D171: 1,754 | E171: 2.02 | G171: 144 | H171: 1.97 | J171: 77 | K171: 2.25 | M171: 108 | N171: 1.83 | P171: 176 | Q171: 2.29 | S171: 319 | T171: 2.45 | V171: 196 | W171: 2.00 | Y171: 113 | Z171: 1.92 | AB171: 153 | AC171: 2.07 | AE171: 142 | AF171: 1.89 | AH171: 139 | AI171: 1.67 | AK171: 118 | AL171: 1.67 | AN171: 69 | AO171: 2.06
C172: 여 | D172: 1,659 | E172: 1.98 | G172: 85 | H172: 1.28 | J172: 61 | K172: 1.97 | M172: 100 | N172: 1.78 | P172: 164 | Q172: 2.10 | S172: 312 | T172: 2.35 | V172: 169 | W172: 1.87 | Y172: 151 | Z172: 2.26 | AB172: 158 | AC172: 2.03 | AE172: 133 | AF172: 1.88 | AH172: 128 | AI172: 1.61 | AK172: 133 | AL172: 2.19 | AN172: 65 | AO172: 2.30
B173: 54세 | C173: 계 | D173: 3,741 | E173: 2.19 | F173: 103.98 | G173: 276 | H173: 1.98 | I173: 148.65 | J173: 134 | K173: 2.05 | L173: 112.70 | M173: 263 | N173: 2.28 | O173: 124.79 | P173: 367 | Q173: 2.37 | R173: 92.15 | S173: 649 | T173: 2.47 | U173: 93.73 | V173: 419 | W173: 2.23 | X173: 109.50 | Y173: 258 | Z173: 2.05 | AA173: 69.74 | AB173: 354 | AC173: 2.33 | AD173: 101.14 | AE173: 327 | AF173: 2.24 | AG173: 103.11 | AH173: 289 | AI173: 1.78 | AJ173: 92.67 | AK173: 288 | AL173: 2.19 | AM173: 118.18 | AN173: 117 | AO173: 1.89 | AP173: 154.35
C174: 남 | D174: 1,907 | E174: 2.20 | G174: 165 | H174: 2.25 | J174: 71 | K174: 2.07 | M174: 146 | N174: 2.48 | P174: 176 | Q174: 2.29 | S174: 314 | T174: 2.41 | V174: 219 | W174: 2.24 | Y174: 106 | Z174: 1.80 | AB174: 178 | AC174: 2.41 | AE174: 166 | AF174: 2.20 | AH174: 139 | AI174: 1.67 | AK174: 156 | AL174: 2.21 | AN174: 71 | AO174: 2.12
C175: 여 | D175: 1,834 | E175: 2.19 | G175: 111 | H175: 1.67 | J175: 63 | K175: 2.03 | M175: 117 | N175: 2.08 | P175: 191 | Q175: 2.45 | S175: 335 | T175: 2.52 | V175: 200 | W175: 2.22 | Y175: 152 | Z175: 2.28 | AB175: 176 | AC175: 2.26 | AE175: 161 | AF175: 2.28 | AH175: 150 | AI175: 1.89 | AK175: 132 | AL175: 2.17 | AN175: 46 | AO175: 1.63
B176: 55세 | C176: 계 | D176: 3,626 | E176: 2.13 | F176: 99.78 | G176: 289 | H176: 2.07 | I176: 106.43 | J176: 125 | K176: 1.92 | L176: 127.27 | M176: 251 | N176: 2.18 | O176: 87.31 | P176: 325 | Q176: 2.10 | R176: 91.18 | S176: 620 | T176: 2.36 | U176: 98.72 | V176: 358 | W176: 1.90 | X176: 120.99 | Y176: 292 | Z176: 2.33 | AA176: 74.85 | AB176: 346 | AC176: 2.28 | AD176: 89.07 | AE176: 319 | AF176: 2.19 | AG176: 118.49 | AH176: 280 | AI176: 1.72 | AJ176: 104.38 | AK176: 301 | AL176: 2.29 | AM176: 99.34 | AN176: 120 | AO176: 1.94 | AP176: 106.90
C177: 남 | D177: 1,811 | E177: 2.09 | G177: 149 | H177: 2.03 | J177: 70 | K177: 2.05 | M177: 117 | N177: 1.98 | P177: 155 | Q177: 2.02 | S177: 308 | T177: 2.36 | V177: 196 | W177: 2.00 | Y177: 125 | Z177: 2.12 | AB177: 163 | AC177: 2.21 | AE177: 173 | AF177: 2.30 | AH177: 143 | AI177: 1.72 | AK177: 150 | AL177: 2.13 | AN177: 62 | AO177: 1.85
C178: 여 | D178: 1,815 | E178: 2.17 | G178: 140 | H178: 2.11 | J178: 55 | K178: 1.77 | M178: 134 | N178: 2.39 | P178: 170 | Q178: 2.18 | S178: 312 | T178: 2.35 | V178: 162 | W178: 1.80 | Y178: 167 | Z178: 2.50 | AB178: 183 | AC178: 2.35 | AE178: 146 | AF178: 2.07 | AH178: 137 | AI178: 1.72 | AK178: 151 | AL178: 2.48 | AN178: 58 | AO178: 2.06
B179: 56세 | C179: 계 | D179: 3,260 | E179: 1.91 | F179: 106.98 | G179: 246 | H179: 1.76 | I179: 129.91 | J179: 131 | K179: 2.01 | L179: 111.29 | M179: 199 | N179: 1.73 | O179: 109.47 | P179: 303 | Q179: 1.96 | R179: 110.42 | S179: 552 | T179: 2.10 | U179: 108.30 | V179: 370 | W179: 1.97 | X179: 103.30 | Y179: 253 | Z179: 2.01 | AA179: 105.69 | AB179: 306 | AC179: 2.02 | AD179: 85.45 | AE179: 269 | AF179: 1.84 | AG179: 99.26 | AH179: 275 | AI179: 1.69 | AJ179: 92.31 | AK179: 258 | AL179: 1.97 | AM179: 138.89 | AN179: 98 | AO179: 1.59 | AP179: 113.04
C180: 남 | D180: 1,685 | E180: 1.94 | G180: 139 | H180: 1.90 | J180: 69 | K180: 2.02 | M180: 104 | N180: 1.76 | P180: 159 | Q180: 2.07 | S180: 287 | T180: 2.20 | V180: 188 | W180: 1.92 | Y180: 130 | Z180: 2.21 | AB180: 141 | AC180: 1.91 | AE180: 134 | AF180: 1.78 | AH180: 132 | AI180: 1.59 | AK180: 150 | AL180: 2.13 | AN180: 52 | AO180: 1.55
C181: 여 | D181: 1,575 | E181: 1.88 | G181: 107 | H181: 1.61 | J181: 62 | K181: 2.00 | M181: 95 | N181: 1.69 | P181: 144 | Q181: 1.85 | S181: 265 | T181: 2.00 | V181: 182 | W181: 2.02 | Y181: 123 | Z181: 1.84 | AB181: 165 | AC181: 2.12 | AE181: 135 | AF181: 1.91 | AH181: 143 | AI181: 1.80 | AK181: 108 | AL181: 1.78 | AN181: 46 | AO181: 1.63
B182: 57세 | C182: 계 | D182: 3,056 | E182: 1.79 | F182: 106.63 | G182: 225 | H182: 1.61 | I182: 102.70 | J182: 96 | K182: 1.47 | L182: 134.15 | M182: 199 | N182: 1.73 | O182: 118.68 | P182: 283 | Q182: 1.83 | R182: 88.67 | S182: 524 | T182: 1.99 | U182: 113.01 | V182: 345 | W182: 1.83 | X182: 112.96 | Y182: 241 | Z182: 1.92 | AA182: 79.85 | AB182: 287 | AC182: 1.89 | AD182: 88.82 | AE182: 267 | AF182: 1.83 | AG182: 115.32 | AH182: 246 | AI182: 1.51 | AJ182: 100.00 | AK182: 242 | AL182: 1.84 | AM182: 128.30 | AN182: 101 | AO182: 1.64 | AP182: 158.97
C183: 남 | D183: 1,577 | E183: 1.82 | G183: 114 | H183: 1.56 | J183: 55 | K183: 1.61 | M183: 108 | N183: 1.83 | P183: 133 | Q183: 1.73 | S183: 278 | T183: 2.13 | V183: 183 | W183: 1.87 | Y183: 107 | Z183: 1.82 | AB183: 135 | AC183: 1.83 | AE183: 143 | AF183: 1.90 | AH183: 123 | AI183: 1.48 | AK183: 136 | AL183: 1.93 | AN183: 62 | AO183: 1.85
C184: 여 | D184: 1,479 | E184: 1.76 | G184: 111 | H184: 1.67 | J184: 41 | K184: 1.32 | M184: 91 | N184: 1.62 | P184: 150 | Q184: 1.92 | S184: 246 | T184: 1.85 | V184: 162 | W184: 1.80 | Y184: 134 | Z184: 2.01 | AB184: 152 | AC184: 1.95 | AE184: 124 | AF184: 1.76 | AH184: 123 | AI184: 1.55 | AK184: 106 | AL184: 1.74 | AN184: 39 | AO184: 1.38
B185: 58세 | C185: 계 | D185: 3,247 | E185: 1.90 | F185: 102.81 | G185: 293 | H185: 2.10 | I185: 96.64 | J185: 133 | K185: 2.04 | L185: 107.81 | M185: 227 | N185: 1.97 | O185: 106.36 | P185: 278 | Q185: 1.79 | R185: 81.70 | S185: 492 | T185: 1.87 | U185: 111.16 | V185: 375 | W185: 1.99 | X185: 101.61 | Y185: 257 | Z185: 2.05 | AA185: 100.78 | AB185: 303 | AC185: 2.00 | AD185: 95.48 | AE185: 276 | AF185: 1.89 | AG185: 101.46 | AH185: 248 | AI185: 1.53 | AJ185: 108.40 | AK185: 259 | AL185: 1.97 | AM185: 117.65 | AN185: 106 | AO185: 1.72 | AP185: 120.83
C186: 남 | D186: 1,646 | E186: 1.90 | G186: 144 | H186: 1.97 | J186: 69 | K186: 2.02 | M186: 117 | N186: 1.98 | P186: 125 | Q186: 1.63 | S186: 259 | T186: 1.99 | V186: 189 | W186: 1.93 | Y186: 129 | Z186: 2.19 | AB186: 148 | AC186: 2.01 | AE186: 139 | AF186: 1.85 | AH186: 129 | AI186: 1.55 | AK186: 140 | AL186: 1.99 | AN186: 58 | AO186: 1.73
C187: 여 | D187: 1,601 | E187: 1.91 | G187: 149 | H187: 2.25 | J187: 64 | K187: 2.06 | M187: 110 | N187: 1.96 | P187: 153 | Q187: 1.96 | S187: 233 | T187: 1.76 | V187: 186 | W187: 2.06 | Y187: 128 | Z187: 1.92 | AB187: 155 | AC187: 1.99 | AE187: 137 | AF187: 1.94 | AH187: 119 | AI187: 1.50 | AK187: 119 | AL187: 1.96 | AN187: 48 | AO187: 1.70
B188: 59세 | C188: 계 | D188: 2,841 | E188: 1.67 | F188: 101.63 | G188: 249 | H188: 1.78 | I188: 84.44 | J188: 103 | K188: 1.58 | L188: 128.89 | M188: 213 | N188: 1.85 | O188: 126.60 | P188: 260 | Q188: 1.68 | R188: 122.22 | S188: 432 | T188: 1.64 | U188: 103.77 | V188: 358 | W188: 1.90 | X188: 110.59 | Y188: 184 | Z188: 1.47 | AA188: 84.00 | AB188: 293 | AC188: 1.93 | AD188: 68.39 | AE188: 239 | AF188: 1.64 | AG188: 119.27 | AH188: 208 | AI188: 1.28 | AJ188: 84.07 | AK188: 203 | AL188: 1.55 | AM188: 115.96 | AN188: 99 | AO188: 1.60 | AP188: 115.22
C189: 남 | D189: 1,432 | E189: 1.65 | G189: 114 | H189: 1.56 | J189: 58 | K189: 1.69 | M189: 119 | N189: 2.02 | P189: 143 | Q189: 1.86 | S189: 220 | T189: 1.69 | V189: 188 | W189: 1.92 | Y189: 84 | Z189: 1.43 | AB189: 119 | AC189: 1.61 | AE189: 130 | AF189: 1.73 | AH189: 95 | AI189: 1.14 | AK189: 109 | AL189: 1.55 | AN189: 53 | AO189: 1.58
C190: 여 | D190: 1,409 | E190: 1.68 | G190: 135 | H190: 2.04 | J190: 45 | K190: 1.45 | M190: 94 | N190: 1.67 | P190: 117 | Q190: 1.50 | S190: 212 | T190: 1.60 | V190: 170 | W190: 1.88 | Y190: 100 | Z190: 1.50 | AB190: 174 | AC190: 2.24 | AE190: 109 | AF190: 1.54 | AH190: 113 | AI190: 1.42 | AK190: 94 | AL190: 1.55 | AN190: 46 | AO190: 1.63
B191: 60세 | C191: 계 | D191: 3,038 | E191: 1.78 | F191: 102.40 | G191: 263 | H191: 1.89 | I191: 105.47 | J191: 121 | K191: 1.85 | L191: 105.08 | M191: 228 | N191: 1.98 | O191: 125.74 | P191: 298 | Q191: 1.92 | R191: 81.71 | S191: 440 | T191: 1.67 | U191: 93.83 | V191: 353 | W191: 1.88 | X191: 89.78 | Y191: 252 | Z191: 2.01 | AA191: 95.35 | AB191: 316 | AC191: 2.08 | AD191: 95.06 | AE191: 236 | AF191: 1.62 | AG191: 114.55 | AH191: 210 | AI191: 1.29 | AJ191: 123.40 | AK191: 222 | AL191: 1.69 | AM191: 152.27 | AN191: 99 | AO191: 1.60 | AP191: 86.79
C192: 남 | D192: 1,537 | E192: 1.77 | G192: 135 | H192: 1.84 | J192: 62 | K192: 1.81 | M192: 127 | N192: 2.15 | P192: 134 | Q192: 1.74 | S192: 213 | T192: 1.63 | V192: 167 | W192: 1.70 | Y192: 123 | Z192: 2.09 | AB192: 154 | AC192: 2.09 | AE192: 126 | AF192: 1.67 | AH192: 116 | AI192: 1.40 | AK192: 134 | AL192: 1.90 | AN192: 46 | AO192: 1.37
C193: 여 | D193: 1,501 | E193: 1.79 | G193: 128 | H193: 1.93 | J193: 59 | K193: 1.90 | M193: 101 | N193: 1.80 | P193: 164 | Q193: 2.10 | S193: 227 | T193: 1.71 | V193: 186 | W193: 2.06 | Y193: 129 | Z193: 1.93 | AB193: 162 | AC193: 2.08 | AE193: 110 | AF193: 1.56 | AH193: 94 | AI193: 1.18 | AK193: 88 | AL193: 1.45 | AN193: 53 | AO193: 1.88
B194: 61세 | C194: 계 | D194: 3,177 | E194: 1.86 | F194: 96.96 | G194: 273 | H194: 1.96 | I194: 82.00 | J194: 132 | K194: 2.02 | L194: 100.00 | M194: 251 | N194: 2.18 | O194: 109.17 | P194: 308 | Q194: 1.99 | R194: 93.71 | S194: 426 | T194: 1.62 | U194: 107.80 | V194: 334 | W194: 1.77 | X194: 88.70 | Y194: 267 | Z194: 2.13 | AA194: 102.27 | AB194: 333 | AC194: 2.20 | AD194: 87.08 | AE194: 265 | AF194: 1.82 | AG194: 97.76 | AH194: 238 | AI194: 1.46 | AJ194: 95.08 | AK194: 243 | AL194: 1.85 | AM194: 116.96 | AN194: 107 | AO194: 1.73 | AP194: 84.48
C195: 남 | D195: 1,564 | E195: 1.80 | G195: 123 | H195: 1.68 | J195: 66 | K195: 1.93 | M195: 131 | N195: 2.22 | P195: 149 | Q195: 1.94 | S195: 221 | T195: 1.69 | V195: 157 | W195: 1.60 | Y195: 135 | Z195: 2.29 | AB195: 155 | AC195: 2.10 | AE195: 131 | AF195: 1.74 | AH195: 116 | AI195: 1.40 | AK195: 131 | AL195: 1.86 | AN195: 49 | AO195: 1.46
C196: 여 | D196: 1,613 | E196: 1.92 | G196: 150 | H196: 2.26 | J196: 66 | K196: 2.13 | M196: 120 | N196: 2.14 | P196: 159 | Q196: 2.04 | S196: 205 | T196: 1.54 | V196: 177 | W196: 1.96 | Y196: 132 | Z196: 1.98 | AB196: 178 | AC196: 2.29 | AE196: 134 | AF196: 1.90 | AH196: 122 | AI196: 1.53 | AK196: 112 | AL196: 1.84 | AN196: 58 | AO196: 2.06
B197: 62세 | C197: 계 | D197: 3,687 | E197: 2.16 | F197: 101.81 | G197: 360 | H197: 2.58 | I197: 114.29 | J197: 161 | K197: 2.47 | L197: 130.00 | M197: 289 | N197: 2.51 | O197: 68.02 | P197: 351 | Q197: 2.27 | R197: 96.09 | S197: 505 | T197: 1.92 | U197: 121.49 | V197: 424 | W197: 2.25 | X197: 100.95 | Y197: 248 | Z197: 1.98 | AA197: 106.67 | AB197: 361 | AC197: 2.38 | AD197: 97.27 | AE197: 318 | AF197: 2.18 | AG197: 105.16 | AH197: 288 | AI197: 1.77 | AJ197: 94.59 | AK197: 265 | AL197: 2.02 | AM197: 97.76 | AN197: 117 | AO197: 1.89 | AP197: 98.31
C198: 남 | D198: 1,860 | E198: 2.15 | G198: 192 | H198: 2.62 | J198: 91 | K198: 2.66 | M198: 117 | N198: 1.98 | P198: 172 | Q198: 2.24 | S198: 277 | T198: 2.12 | V198: 213 | W198: 2.17 | Y198: 128 | Z198: 2.18 | AB198: 178 | AC198: 2.41 | AE198: 163 | AF198: 2.16 | AH198: 140 | AI198: 1.69 | AK198: 131 | AL198: 1.86 | AN198: 58 | AO198: 1.73
C199: 여 | D199: 1,827 | E199: 2.18 | G199: 168 | H199: 2.53 | J199: 70 | K199: 2.26 | M199: 172 | N199: 3.06 | P199: 179 | Q199: 2.30 | S199: 228 | T199: 1.72 | V199: 211 | W199: 2.34 | Y199: 120 | Z199: 1.80 | AB199: 183 | AC199: 2.35 | AE199: 155 | AF199: 2.20 | AH199: 148 | AI199: 1.86 | AK199: 134 | AL199: 2.20 | AN199: 59 | AO199: 2.09
B200: 63세 | C200: 계 | D200: 3,402 | E200: 2.00 | F200: 94.96 | G200: 324 | H200: 2.32 | I200: 111.76 | J200: 157 | K200: 2.41 | L200: 96.25 | M200: 295 | N200: 2.56 | O200: 82.10 | P200: 300 | Q200: 1.94 | R200: 71.43 | S200: 398 | T200: 1.51 | U200: 102.03 | V200: 382 | W200: 2.03 | X200: 123.39 | Y200: 264 | Z200: 2.10 | AA200: 74.83 | AB200: 406 | AC200: 2.68 | AD200: 87.10 | AE200: 277 | AF200: 1.90 | AG200: 88.44 | AH200: 279 | AI200: 1.72 | AJ200: 100.72 | AK200: 209 | AL200: 1.59 | AM200: 100.96 | AN200: 111 | AO200: 1.80 | AP200: 126.53
C201: 남 | D201: 1,657 | E201: 1.91 | G201: 171 | H201: 2.33 | J201: 77 | K201: 2.25 | M201: 133 | N201: 2.26 | P201: 125 | Q201: 1.63 | S201: 201 | T201: 1.54 | V201: 211 | W201: 2.15 | Y201: 113 | Z201: 1.92 | AB201: 189 | AC201: 2.56 | AE201: 130 | AF201: 1.73 | AH201: 140 | AI201: 1.69 | AK201: 105 | AL201: 1.49 | AN201: 62 | AO201: 1.85
C202: 여 | D202: 1,745 | E202: 2.08 | G202: 153 | H202: 2.31 | J202: 80 | K202: 2.58 | M202: 162 | N202: 2.88 | P202: 175 | Q202: 2.24 | S202: 197 | T202: 1.48 | V202: 171 | W202: 1.89 | Y202: 151 | Z202: 2.26 | AB202: 217 | AC202: 2.79 | AE202: 147 | AF202: 2.08 | AH202: 139 | AI202: 1.75 | AK202: 104 | AL202: 1.71 | AN202: 49 | AO202: 1.74
... 141 more rows

Sheet 인구 및 세대현황(대전광역시)
A1: 9
B2: 인구 및 세대현황
B3: 행정기관: | C3: 대전광역시
B4: 작성기준: | C4: 2023.09 현재 | H4: 출력일자 : 2023.10.01 | L4: (단위 : 명)
B5: 행정기관 | D5: 인 구 수 | G5: 구 성 비 | J5: 성비 | K5: 세대수 | L5: 세대당인구
D6: 계 | E6: 남 | F6: 여 | G6: 계 | H6: 남 | I6: 여
B7: 대전광역시 | D7: 1,444,595 | E7: 720,520 | F7: 724,075 | G7: 100.00 | H7: 49.88 | I7: 50.12 | J7: 99.51 | K7: 680,653 | L7: 2.12
B8: 대덕구 | D8: 170,480 | E8: 86,676 | F8: 83,804 | G8: 11.80 | H8: 6.00 | I8: 5.80 | J8: 103.43 | K8: 80,366 | L8: 2.12
B9: 동구 | D9: 218,687 | E9: 110,136 | F9: 108,551 | G9: 15.14 | H9: 7.62 | I9: 7.51 | J9: 101.46 | K9: 109,366 | L9: 2.00
B10: 중구 | D10: 224,439 | E10: 110,229 | F10: 114,210 | G10: 15.54 | H10: 7.63 | I10: 7.91 | J10: 96.51 | K10: 107,367 | L10: 2.09
B11: 서구 | D11: 466,927 | E11: 229,071 | F11: 237,856 | G11: 32.32 | H11: 15.86 | I11: 16.47 | J11: 96.31 | K11: 217,882 | L11: 2.14
B12: 유성구 | D12: 364,062 | E12: 184,408 | F12: 179,654 | G12: 25.20 | H12: 12.77 | I12: 12.44 | J12: 102.65 | K12: 165,672 | L12: 2.20
